Workbook

Sheet NOMBRE (hidden)
A1: DATOS DEL ESTABLECIMIENTO | C1: CÓDIGOS
A2: NOMBRE DE COMUNA | I2: =IF(OR(NOMBRE!C2="",NOMBRE!D2="",NOMBRE!E2="",NOMBRE!F2="",NOMBRE!G2=""),"Falta Cód. Com.","") -> Falta Cód. Com. | AG2: =IF(I2>"",1,0) -> 1
A3: NOMBRE ESTABLECIMIENTO/ESTRATEGIA | I3: =IF(OR(NOMBRE!C3="",NOMBRE!D3="",NOMBRE!E3="",NOMBRE!F3="",NOMBRE!G3="",NOMBRE!H3=""),"Falta Cód. Est.","") -> Falta Cód. Est. | AG3: =IF(I3>"",1,0) -> 1
A6: MES: | I6: =IF(OR(NOMBRE!C6="",NOMBRE!D6=""),"Falta Cód. Mes.","") -> Falta Cód. Mes. | AG6: =IF(I6>"",1,0) -> 1
A7: AÑO: | B7: 2024 | AG7: =SUM(AG2:AG6) -> 3
A9: Versión 1.0 FEBRERO 2024
A11: Director/a Servicio de Salud o Director/a Establecimiento | AA11: ENERO | AB11: Establecimiento de Mayor Complejidad (EMAYC) | AC11: SERVICIO DE SALUD
A12: Jefe/a de Estadísticas | AA12: FEBRERO | AB12: Establecimiento de Mediana Complejidad (EMEDC) | AC12: MUNICIPAL
AA13: MARZO | AB13: Establecimiento de Menor Complejidad (EMENC) | AC13: OTRA INSTITUCION (Delegado)
A14: MINSAL - DEIS | AA14: ABRIL | AB14: Centros de Diagnóstico Terapeutico (CDT)
AA15: MAYO | AB15: Centro de Referencia de Salud (CRS)
AA16: JUNIO | AB16: Centro de Salud Familiar
B17: SERIE BM ESTABLECIMIENTOS AREA MUNICIPAL | AA17: JULIO | AB17: Consultorio General Urbano (CGU)
AA18: AGOSTO | AB18: Consultorio General Urbano (CGU) - CESFAM
AA19: SEPTIEMBRE | AB19: Consultorio General Urbano(CGU) con SAPU/SUR/SAR
AA20: OCTUBRE | AB20: Consultorio General Urbano (CGU) - CESFAM con SAPU/SAR
AA21: NOVIEMBRE | AB21: Consultorio General Rural (CGR)
AA22: DICIEMBRE | AB22: Consultorio General Rural (CGR) - CESFAM
AB23: Consultorio General Rural (CGR) con SAPU/SAR/SUR
AB24: Consultorio General Rural (CGR) - CESFAM con SAPU/SAR/SUR
AB25: Posta de Salud Rural (PSR)
AB26: Centro Comunitario de Salud Familiar (CECOF)
AB27: Consultorio de Salud Mental (COSAM)
AB28: Programa de Reparación y Atención Integral de Salud (PRAIS)
AB29: Centro de Atención Funcionarios (CAF)
AB30: Unidad de Salud de Funcionarios (USF)
AB31: ClÍnica Dental Móvil (CDM)
AB32: Dirección Servicio de Salud (DSS)
AB33: Servicio de Atención Primaria de Urgencia (SAPU)
AB34: Servicio de Urgencia Rural (SUR)
AB35: Servicio de Alta Resolución SAR
AB36: Laboratorio Clínico o Dental
AB37: Servicio de Atención Primaria de Urgencia Dental (SAPUDENT)
AB38: Centro de Rehabilitación (CR)
AB39: Hospital de Campaña
AB40: Centro Oncologico
AB41: SAMU
AB42: Centro de salud Urbano (CSU)

Sheet BM18
B1: SERVICIO DE SALUD
B2: =CONCATENATE("COMUNA: ",NOMBRE!B2," ","( ",NOMBRE!C2,NOMBRE!D2,NOMBRE!E2,NOMBRE!F2,NOMBRE!G2," )") -> COMUNA: ( )
B3: =CONCATENATE("ESTABLECIMIENTO/ESTRATEGIA: ",NOMBRE!B3," ","( ",NOMBRE!C3,NOMBRE!D3,NOMBRE!E3,NOMBRE!F3,NOMBRE!G3,NOMBRE!H3," )") -> ESTABLECIMIENTO/ESTRATEGIA: ( )
B4: =CONCATENATE("MES: ",NOMBRE!B6," ","( ",NOMBRE!C6,NOMBRE!D6," )") -> MES: ( )
B5: =CONCATENATE("AÑO: ",NOMBRE!B7) -> AÑO: 2024
B8: REM-B18. ACTIVIDADES DE APOYO DIAGNOSTICO Y TERAPEUTICO (USO EXCLUSIVO DE ESTABLECIMIENTOS MUNICIPALES)
B10: SECCIÓN A: EXÁMENES DE DIAGNOSTICO
B11: EXÁMENES | E11: TOTAL | F11: SAPU/SAR/SUR | G11: Resto Establecimientos APS
F12: Total | G12: Total
B13: TOTAL EXÁMENES LABORATORIO | E13: =SUM(F13:G13) -> 591,880 | F13: =SUM(F14:F16,F18:F19,F24:F25) -> 477 | G13: =SUM(G14:G16,G18:G19,G24:G25) -> 591,403
A14: 18010100 | B14: I | C14: HEMATOLÓGICOS | E14: =SUM(F14:G14) -> 93,537 | F14: =IFERROR(VLOOKUP($A14,FILTRO.12!A5:K167,3,FALSE),0) -> 0 | G14: =IFERROR(VLOOKUP($A14,FILTRO.12!A5:K167,4,FALSE),0) -> 93,537
A15: 18010200 | B15: II | C15: BIOQUÍMICOS | E15: =SUM(F15:G15) -> 323,002 | F15: =IFERROR(VLOOKUP($A15,FILTRO.12!A6:K168,3,FALSE),0) -> 477 | G15: =IFERROR(VLOOKUP($A15,FILTRO.12!A6:K168,4,FALSE),0) -> 322,525
A16: 18090100 | B16: III | C16: HORMONALES | E16: 63,572 | F16: =IFERROR(VLOOKUP($A16,FILTRO.12!A7:K169,3,FALSE),0) -> 0 | G16: =IFERROR(VLOOKUP($A16,FILTRO.12!A7:K169,4,FALSE),0) -> 63,572
B17: IV | C17: GENÉTICA | F17: =IFERROR(VLOOKUP($A17,FILTRO.12!A8:K170,3,FALSE),0) -> 0 | G17: =IFERROR(VLOOKUP($A17,FILTRO.12!A8:K170,4,FALSE),0) -> 0
A18: 18010500 | B18: V | C18: INMUNOLÓGICOS | E18: =SUM(F18:G18) -> 0 | F18: =IFERROR(VLOOKUP($A18,FILTRO.12!A9:K171,3,FALSE),0) -> 0 | G18: =IFERROR(VLOOKUP($A18,FILTRO.12!A9:K171,4,FALSE),0) -> 0
A19: 18010601 | B19: VI | C19: MICROBIOLÓGICOS | E19: 0 | F19: =IFERROR(VLOOKUP($A19,FILTRO.12!A10:K172,3,FALSE),0) -> 0 | G19: =IFERROR(VLOOKUP($A19,FILTRO.12!A10:K172,4,FALSE),0) -> 0
C20: a) BACTERIAS Y HONGOS
C21: b) PARÁSITOS
C22: c) VIRUS
B23: VII | C23: PROCEDIMIENTO O DETERMINACIÓN DIRECTA C/PACIENTE
A24: 18010800 | B24: VIII | C24: EX. DE DEPOSICIONES EXUDADOS. SECREC. Y OTROS LIQ. | E24: =SUM(F24:G24) -> 3,548 | F24: =IFERROR(VLOOKUP($A24,FILTRO.12!A5:K334,3,FALSE),0) -> 0 | G24: =IFERROR(VLOOKUP($A24,FILTRO.12!A5:K334,4,FALSE),0) -> 3,548
A25: 18010900 | B25: IX | C25: ORINA | E25: 108,221 | F25: =IFERROR(VLOOKUP($A25,FILTRO.12!A16:K178,3,FALSE),0) -> 0 | G25: =IFERROR(VLOOKUP($A25,FILTRO.12!A6:K335,4,FALSE),0) -> 108,221
B26: TOTAL EXÁMENES IMAGENOLOGIA | E26: =SUM(F26:G26) -> 10,179 | F26: =SUM(F27+F28+F44) -> 0 | G26: =SUM(G27+G28) -> 10,179
A27: 18011001 | B27: a) | C27: EX. RADIOLÓGICOS SIMPLES | E27: =SUM(F27:G27) -> 7,312 | F27: =IFERROR(VLOOKUP($A27,FILTRO.12!A18:K180,3,FALSE),0) -> 0 | G27: =IFERROR(VLOOKUP($A27,FILTRO.12!A8:K337,4,FALSE),0) -> 7,312
A28: 18011002 | C28: Ecotomografías | E28: =SUM(F28:G28) -> 2,867 | F28: =IFERROR(VLOOKUP($A28,FILTRO.12!A19:K181,3,FALSE),0) -> 0 | G28: =IFERROR(VLOOKUP($A28,FILTRO.12!A9:K338,4,FALSE),0) -> 2,867
A29: 18400500 | C29: Ecotomografías abdominal | E29: 1,049 | F29: =IFERROR(VLOOKUP($A29,FILTRO.12!A20:K182,3,FALSE),0) -> 0 | G29: =IFERROR(VLOOKUP($A29,FILTRO.12!A10:K339,4,FALSE),0) -> 1,049
A30: 18700240 | C30: Ecografías Obstétrica Primer Trimestre (<11 semanas) | D30: Médico/a | E30: =SUM(G30) -> 18 | F30: =IFERROR(VLOOKUP($A30,FILTRO.12!A21:K183,3,FALSE),0) -> 0 | G30: =IFERROR(VLOOKUP($A30,FILTRO.12!A11:K340,4,FALSE),0) -> 18
A31: 18700250 | D31: Matrón/a | E31: =SUM(G31) -> 812 | F31: =IFERROR(VLOOKUP($A31,FILTRO.12!A22:K184,3,FALSE),0) -> 0 | G31: =IFERROR(VLOOKUP($A31,FILTRO.12!A12:K341,4,FALSE),0) -> 812
A32: 18700260 | C32: Ecografias Obstétricas Primer Trimestre (11 - 14 semanas) | D32: Médico/a | E32: =SUM(G32) -> 9 | F32: =IFERROR(VLOOKUP($A32,FILTRO.12!A23:K185,3,FALSE),0) -> 0 | G32: =IFERROR(VLOOKUP($A32,FILTRO.12!A13:K342,4,FALSE),0) -> 9
A33: 18700270 | D33: Matrón/a | E33: 1,003 | F33: =IFERROR(VLOOKUP($A33,FILTRO.12!A24:K186,3,FALSE),0) -> 0 | G33: =IFERROR(VLOOKUP($A33,FILTRO.12!A14:K343,4,FALSE),0) -> 1,003
A34: 18700280 | C34: Ecografias Obstétricas Segundo Trimestre (22 - 24 semanas) | D34: Médico/a | E34: 8 | F34: =IFERROR(VLOOKUP($A34,FILTRO.12!A25:K187,3,FALSE),0) -> 0 | G34: =IFERROR(VLOOKUP($A34,FILTRO.12!A15:K344,4,FALSE),0) -> 8
A35: 18700290 | D35: Matrón/a | E35: 606 | F35: =IFERROR(VLOOKUP($A35,FILTRO.12!A26:K188,3,FALSE),0) -> 0 | G35: =IFERROR(VLOOKUP($A35,FILTRO.12!A16:K345,4,FALSE),0) -> 606
A36: 18700300 | C36: Ecografias Obstétricas Tercer Trimestre (30 - 34 semanas) | D36: Médico/a | E36: 32 | F36: =IFERROR(VLOOKUP($A36,FILTRO.12!A27:K189,3,FALSE),0) -> 0 | G36: =IFERROR(VLOOKUP($A36,FILTRO.12!A17:K346,4,FALSE),0) -> 32
A37: 18700310 | D37: Matrón/a | E37: 500 | F37: =IFERROR(VLOOKUP($A37,FILTRO.12!A28:K190,3,FALSE),0) -> 0 | G37: =IFERROR(VLOOKUP($A37,FILTRO.12!A18:K347,4,FALSE),0) -> 500
C38: Total Ecografías Obstétricas por profesional | D38: Médico/a | E38: =SUM(E30+E32+E34+E36) -> 67 | F38: =IFERROR(VLOOKUP($A38,FILTRO.12!A29:K191,3,FALSE),0) -> 0 | G38: =IFERROR(VLOOKUP($A38,FILTRO.12!A19:K348,4,FALSE),0) -> 0
D39: Matrón/a | E39: =SUM(E31+E33+E35+E37) -> 2,921 | F39: =IFERROR(VLOOKUP($A39,FILTRO.12!A30:K192,3,FALSE),0) -> 0 | G39: =IFERROR(VLOOKUP($A39,FILTRO.12!A20:K349,4,FALSE),0) -> 0
A40: 18700320 | C40: Ecografía de seguimiento DIU (Regulación de la Fertilidad) | D40: Médico/a | E40: =SUM(G40) -> 0 | F40: =IFERROR(VLOOKUP($A40,FILTRO.12!A31:K193,3,FALSE),0) -> 0 | G40: =IFERROR(VLOOKUP($A40,FILTRO.12!A21:K350,4,FALSE),0) -> 0
A41: 18700330 | D41: Matrón/a | E41: =SUM(G41) -> 261 | F41: =IFERROR(VLOOKUP($A41,FILTRO.12!A32:K194,3,FALSE),0) -> 0 | G41: =IFERROR(VLOOKUP($A41,FILTRO.12!A22:K351,4,FALSE),0) -> 261
A42: 18700340 | C42: Ecografía Transvaginal (control de Climaterio y Ginecológico) | D42: Médico/a | E42: =SUM(G42) -> 8 | F42: =IFERROR(VLOOKUP($A42,FILTRO.12!A33:K195,3,FALSE),0) -> 0 | G42: =IFERROR(VLOOKUP($A42,FILTRO.12!A23:K352,4,FALSE),0) -> 8
A43: 18700350 | D43: Matrón/a | E43: =SUM(G43) -> 489 | F43: =IFERROR(VLOOKUP($A43,FILTRO.12!A34:K196,3,FALSE),0) -> 0 | G43: =IFERROR(VLOOKUP($A43,FILTRO.12!A24:K353,4,FALSE),0) -> 489
C44: Total de ecografías obstetricas y ginecologicas | E44: =SUM(E38:E43) -> 3,746
B46: SECCIÓN B: PROCEDIMIENTO DE APOYO CLÍNICO Y TERAPÉUTICO
B47: PROCEDIMIENTOS | C47: TOTAL | D47: SAPU/SAR/SUR | E47: Resto Establecimientos APS
D48: Total | E48: Total
A49: 18020100 | B49: PROC. DE NEUROLOGÍA | C49: =SUM(D49:E49) -> 0 | D49: =IFERROR(VLOOKUP($A49,FILTRO.12!A5:K334,3,FALSE),0) -> 0 | E49: =IFERROR(VLOOKUP($A49,FILTRO.12!A5:K334,4,FALSE),0) -> 0
A50: 18400400 | B50: PROC. DE OFTALMOLOGÍA | C50: =SUM(D50:E50) -> 206 | D50: =IFERROR(VLOOKUP($A50,FILTRO.12!A6:K335,3,FALSE),0) -> 169 | E50: =IFERROR(VLOOKUP($A50,FILTRO.12!A6:K335,4,FALSE),0) -> 37
A51: 18020200 | B51: PROC. DE OTORRINOLARINGOLOGÍA | C51: 188 | D51: =IFERROR(VLOOKUP($A51,FILTRO.12!A7:K336,3,FALSE),0) -> 160 | E51: =IFERROR(VLOOKUP($A51,FILTRO.12!A7:K336,4,FALSE),0) -> 28
A52: 18020300 | B52: PROC. DE NEUMOLOGÍA | C52: 22,330 | D52: =IFERROR(VLOOKUP($A52,FILTRO.12!A8:K337,3,FALSE),0) -> 15,893 | E52: =IFERROR(VLOOKUP($A52,FILTRO.12!A8:K337,4,FALSE),0) -> 6,437
A53: 18020400 | B53: PROC. DE DERMATOLOGÍA | C53: 984 | D53: =IFERROR(VLOOKUP($A53,FILTRO.12!A9:K338,3,FALSE),0) -> 2 | E53: =IFERROR(VLOOKUP($A53,FILTRO.12!A9:K338,4,FALSE),0) -> 982
A54: 18020500 | B54: PROC. DE CARDIOLOGÍA | C54: 149,163 | D54: =IFERROR(VLOOKUP($A54,FILTRO.12!A10:K339,3,FALSE),0) -> 32,653 | E54: =IFERROR(VLOOKUP($A54,FILTRO.12!A10:K339,4,FALSE),0) -> 116,510
A55: 18020600 | B55: PROC. DE GASTROENTEROLOGÍA | C55: 160 | D55: =IFERROR(VLOOKUP($A55,FILTRO.12!A11:K340,3,FALSE),0) -> 142 | E55: =IFERROR(VLOOKUP($A55,FILTRO.12!A11:K340,4,FALSE),0) -> 18
A56: 18020700 | B56: PROC. DE UROLOGÍA | C56: 1,458 | D56: =IFERROR(VLOOKUP($A56,FILTRO.12!A12:K341,3,FALSE),0) -> 1,091 | E56: =IFERROR(VLOOKUP($A56,FILTRO.12!A12:K341,4,FALSE),0) -> 367
A57: 18020800 | B57: PROC. ORTOPEDIA Y TRAUMATOLOGÍA | C57: 974 | D57: =IFERROR(VLOOKUP($A57,FILTRO.12!A13:K342,3,FALSE),0) -> 960 | E57: =IFERROR(VLOOKUP($A57,FILTRO.12!A13:K342,4,FALSE),0) -> 14
A58: 18020900 | B58: PROC. GINECOLOGÍA | C58: 999 | D58: =IFERROR(VLOOKUP($A58,FILTRO.12!A14:K343,3,FALSE),0) -> 0 | E58: =IFERROR(VLOOKUP($A58,FILTRO.12!A14:K343,4,FALSE),0) -> 999
B59: TOTAL | C59: =SUM(C49:C58) -> 176,462 | D59: =SUM(D49:D58) -> 51,070 | E59: =SUM(E49:E58) -> 125,392
B61: SECCIÓN C: INTERVENCIONES QUIRÚRGICAS MENORES
D62: TOTAL | E62: SAPU/SAR/SUR | F62: Resto Establecimientos APS
E63: Total
A64: 18030000 | B64: TOTAL INTERVENCIONES QUIRÚRGICAS MENORES (SUB-GRUPO TEGUMENTOS) | D64: =SUM(E64:F64) -> 5,605 | E64: =IFERROR(VLOOKUP($A64,FILTRO.12!A5:K334,3,FALSE),0) -> 4,077 | F64: =IFERROR(VLOOKUP($A64,FILTRO.12!A5:K334,4,FALSE),0) -> 1,528
B65: SECCIÓN D : INTERVENCIONES QUIRÚRGICAS MENORES, POR EDAD
B66: INTERVENCIONES QUIRÚRGICAS | C66: TOTAL | D66: < 15 AÑOS | E66: 15 Y + AÑOS
B67: TOTAL | C67: =SUM(D67:E67) -> 5,581 | D67: =SUM(D68:D69) -> 503 | E67: =SUM(E68:E69) -> 5,078 | F67: =V67 -> El Total de Intervenciones Quirúrgicas de la Sección C debe coincidir con el Total de la Seccion D | V67: =IF(C67=D64,"","El Total de Intervenciones Quirúrgicas de la Sección C debe coincidir con el Total de la Seccion D") -> El Total de Intervenciones Quirúrgicas de la Sección C debe coincidir con el Total de la Seccion D | W67: =IF(C67=D64,0,1) -> 1
A68: 18040100 | B68: SAPU/SAR | C68: =SUM(D68:E68) -> 4,061 | D68: =IFERROR(VLOOKUP($A68,FILTRO.12!A5:K334,3,FALSE),0) -> 434 | E68: =IFERROR(VLOOKUP($A68,FILTRO.12!A5:K334,4,FALSE),0) -> 3,627 | F68: =V68 -> El Total de Intervenciones Quirúrgicas menores SAPU/SAR debe coincidir con el Total de Intervenciones Quirúrgicas menores SAPU/SAR/SUR de la Sección C. | V68: =IF(C68=E64,"","El Total de Intervenciones Quirúrgicas menores SAPU/SAR debe coincidir con el Total de Intervenciones Quirúrgicas menores SAPU/SAR/SUR de la Sección C. ") -> El Total de Intervenciones Quirúrgicas menores SAPU/SAR debe coincidir con el Total de Intervenciones Quirúrgicas menores SAPU/SAR/SUR de la Sección C. | W68: =IF(C67<>BM18A!D585,1,0) -> 1
A69: 18040200 | B69: RESTO ESTABLECIMIENTOS APS | C69: =SUM(D69:E69) -> 1,520 | D69: =IFERROR(VLOOKUP($A69,FILTRO.12!A6:K335,3,FALSE),0) -> 69 | E69: =IFERROR(VLOOKUP($A69,FILTRO.12!A6:K335,4,FALSE),0) -> 1,451 | F69: * El Total de Intervenciones Quirúrgicas menores NO SAPU debe coincidir con el Total de Intervenciones Quirúrgicas menores NO SAPU/NO SUR de la Sección C. | V69: =IF(C69=F64,""," * El Total de Intervenciones Quirúrgicas menores NO SAPU debe coincidir con el Total de Intervenciones Quirúrgicas menores NO SAPU/NO SUR de la Sección C. ") -> * El Total de Intervenciones Quirúrgicas menores NO SAPU debe coincidir con el Total de Intervenciones Quirúrgicas menores NO SAPU/NO SUR de la Sección C. | W69: =IF(C69<>BM18A!E586,1,0) -> 1
B70: SECCIÓN E: MISCELÁNEOS
B71: MISCELÁNEOS | C71: TOTAL | D71: SAPU/SAR/SUR | E71: Resto Establecimientos APS
D72: Total | E72: Total
A73: 18090000 | B73: PROCEDIMIENTOS DE PODOLOGIA | C73: =SUM(D73:E73) -> 33,733 | D73: =IFERROR(VLOOKUP($A73,FILTRO.12!A10:K339,3,FALSE),0) -> 603 | E73: =IFERROR(VLOOKUP($A73,FILTRO.12!A10:K339,4,FALSE),0) -> 33,130
A74: 18050100 | B74: CURACIÓN SIMPLE AMBULATORIA | C74: =SUM(D74:E74) -> 96,896 | D74: =IFERROR(VLOOKUP($A74,FILTRO.12!A11:K340,3,FALSE),0) -> 16,643 | E74: =IFERROR(VLOOKUP($A74,FILTRO.12!A11:K340,4,FALSE),0) -> 80,253
A75: 18050400 | B75: CURACION AVANZADA UV | C75: 15,091 | D75: =IFERROR(VLOOKUP($A75,FILTRO.12!A12:K341,3,FALSE),0) -> 310 | E75: =IFERROR(VLOOKUP($A75,FILTRO.12!A12:K341,4,FALSE),0) -> 14,781
A76: 18050500 | B76: CURACION COMPLEJA | C76: 62,619 | D76: =IFERROR(VLOOKUP($A76,FILTRO.12!A13:K342,3,FALSE),0) -> 2,601 | E76: =IFERROR(VLOOKUP($A76,FILTRO.12!A13:K342,4,FALSE),0) -> 60,018
A77: 18050200 | B77: AUTOCONTROL PERSONAS CON DIABETES INSULINO DEPENDIENTE (D.I.D. MENSUAL) | C77: 1,954 | D77: =IFERROR(VLOOKUP($A77,FILTRO.12!A14:K343,3,FALSE),0) -> 208 | E77: =IFERROR(VLOOKUP($A77,FILTRO.12!A14:K343,4,FALSE),0) -> 1,746
A78: 18050300 | B78: OXIGENOTERAPIA A DOMICILIO | C78: =SUM(D78:E78) -> 691 | D78: =IFERROR(VLOOKUP($A78,FILTRO.12!A15:K344,3,FALSE),0) -> 327 | E78: =IFERROR(VLOOKUP($A78,FILTRO.12!A15:K344,4,FALSE),0) -> 364
B79: SECCIÓN F: PRESCRIPCIONES ADMINISTRADAS EN URGENCIA
B80: ATENCIÓN | C80: TOTAL
A82: 18400700 | B82: URGENCIA SAPU/SAR/SUR | C82: =IFERROR(VLOOKUP($A82,FILTRO.12!A5:K334,2,FALSE),0) -> 1,139,477
B83: SECCIÓN G : OTRAS ATENCIONES A PACIENTES AMBULATORIOS
B84: TIPO DE ATENCIÓN | C84: TOTAL | D84: ATENCIONES POR EDAD
D85: < 1 año | E85: 1 - 4 años | F85: 5 a 9 años | G85: 10 a 19 años | H85: 20 a 64 años | I85: 65 años y más
A86: 18070100 | B86: POR TERAPÉUTICA OCUPACIONAL | C86: =SUM(D86:I86) -> 331 | D86: =IFERROR(VLOOKUP($A86,FILTRO.12!A5:K334,3,FALSE),0) -> 39 | E86: =IFERROR(VLOOKUP($A86,FILTRO.12!A5:K334,4,FALSE),0) -> 231 | F86: =IFERROR(VLOOKUP($A86,FILTRO.12!A5:K334,5,FALSE),0) -> 40 | G86: =IFERROR(VLOOKUP($A86,FILTRO.12!A5:K334,6,FALSE),0) -> 8 | H86: =IFERROR(VLOOKUP($A86,FILTRO.12!A5:K334,7,FALSE),0) -> 4 | I86: =IFERROR(VLOOKUP($A86,FILTRO.12!A5:K334,8,FALSE),0) -> 9
A87: 18070300 | B87: POR KINESIOLOGO (NO SAPU) | C87: =SUM(D87:I87) -> 852 | D87: =IFERROR(VLOOKUP($A87,FILTRO.12!A6:K335,3,FALSE),0) -> 296 | E87: =IFERROR(VLOOKUP($A87,FILTRO.12!A6:K335,4,FALSE),0) -> 355 | F87: =IFERROR(VLOOKUP($A87,FILTRO.12!A6:K335,5,FALSE),0) -> 27 | G87: =IFERROR(VLOOKUP($A87,FILTRO.12!A6:K335,6,FALSE),0) -> 70 | H87: =IFERROR(VLOOKUP($A87,FILTRO.12!A6:K335,7,FALSE),0) -> 22 | I87: =IFERROR(VLOOKUP($A87,FILTRO.12!A6:K335,8,FALSE),0) -> 82
A88: 18400900 | B88: POR EDUCADORA DE PÁRVULO/DIFERENCIAL | C88: =SUM(D88:E88) -> 5,374 | D88: =IFERROR(VLOOKUP($A88,FILTRO.12!A7:K336,3,FALSE),0) -> 952 | E88: =IFERROR(VLOOKUP($A88,FILTRO.12!A7:K336,4,FALSE),0) -> 4,422 | F88: =IFERROR(VLOOKUP($A88,FILTRO.12!A5:K334,5,FALSE),0) -> 0 | G88: =IFERROR(VLOOKUP($A88,FILTRO.12!A5:K334,6,FALSE),0) -> 0 | H88: =IFERROR(VLOOKUP($A88,FILTRO.12!A5:K334,7,FALSE),0) -> 0 | I88: =IFERROR(VLOOKUP($A88,FILTRO.12!A5:K334,8,FALSE),0) -> 0
B89: SECCIÓN H: OTROS TRASLADOS DE PACIENTES
B90: TIPO DE ACCION | D90: TOTAL | E90: POR COMPRA DE SERVICIO
A91: 18090200 | B91: TRASLADOS NO DE URGENCIA | C91: AMBULANCIA | D91: =IFERROR(VLOOKUP($A91,FILTRO.12!A10:K339,2,FALSE),0) -> 7,837 | E91: =IFERROR(VLOOKUP($A91,FILTRO.12!A5:K334,3,FALSE),0) -> 1,666
A92: 18090300 | C92: MARÍTIMO | D92: =IFERROR(VLOOKUP($A92,FILTRO.12!A11:K340,2,FALSE),0) -> 0 | E92: =IFERROR(VLOOKUP($A92,FILTRO.12!A6:K335,3,FALSE),0) -> 0
A93: 18090400 | C93: AÉREO | D93: =IFERROR(VLOOKUP($A93,FILTRO.12!A12:K341,2,FALSE),0) -> 0 | E93: =IFERROR(VLOOKUP($A93,FILTRO.12!A7:K336,3,FALSE),0) -> 0
B94: SECCIÓN I: EXAMENES PESQUISA COVID-19
B95: TIPO DE EXÁMEN | C95: TOTAL | D95: Por grupos etarios | G95: POR COMPRA DE SERVICIO
D96: < 15 años | E96: > 15-64 años | F96: 65 y más años
A97: 18700100 | B97: 0306082: Reacción de Polimerasa en Cadena (P.C.R.), virus Influenza, virus Herpes, citomegalovirus, hepatitis C, mycobacteria TBC, SARS CoV -2 c/u (incluye toma muestra hisopado nasofaríngeo). | C97: =SUM(D97:F97) -> 118 | D97: =IFERROR(VLOOKUP($A97,FILTRO.12!A5:K334,3,FALSE),0) -> 22 | E97: =IFERROR(VLOOKUP($A97,FILTRO.12!A5:K334,4,FALSE),0) -> 86 | F97: =IFERROR(VLOOKUP($A97,FILTRO.12!A5:K334,5,FALSE),0) -> 10 | G97: =IFERROR(VLOOKUP($A97,FILTRO.12!A5:K334,6,FALSE),0) -> 0
A100: CODIGOS ELIMINADOS
A101: 18700110
A102: 18700120
A103: 18700130
A104: 18700140
A105: 18700150
A106: 18700160
A107: 18700170
A108: 18700180
A109: 18700190
A110: 18700210
A111: 18700220
A112: 18700230

Sheet BM18A
B1: SERVICIO DE SALUD
B2: =CONCATENATE("COMUNA: ",NOMBRE!B2," ","( ",NOMBRE!C2,NOMBRE!D2,NOMBRE!E2,NOMBRE!F2,NOMBRE!G2," )") -> COMUNA: ( )
B3: =CONCATENATE("ESTABLECIMIENTO/ESTRATEGIA: ",NOMBRE!B3," ","( ",NOMBRE!C3,NOMBRE!D3,NOMBRE!E3,NOMBRE!F3,NOMBRE!G3,NOMBRE!H3," )") -> ESTABLECIMIENTO/ESTRATEGIA: ( )
B4: =CONCATENATE("MES: ",NOMBRE!B6," ","( ",NOMBRE!C6,NOMBRE!D6," )") -> MES: ( )
B5: =CONCATENATE("AÑO: ",NOMBRE!B7) -> AÑO: 2024
B7: REM-18A - LIBRO DE PRESTACIONES DE APOYO DIAGNOSTICO y TERAPÉUTICO (USO EXCLUSIVO DE ESTABLECIMIENTOS MUNICIPALES)
B9: SECCIÓN A: EXÁMENES DE DIAGNOSTICO
B10: CÓDIGOS | C10: EXÁMENES | D10: TOTAL | E10: SAPU/SAR/SUR | F10: Resto Establecimientos APS | G10: Compra de Servicios
B12: SANGRE HEMATOLOGÍA
A13: 80301001 | B13: 0301001 | C13: Acidificación del suero, test de Ham | D13: =SUM(E13:F13) -> 0 | E13: =IFERROR(VLOOKUP($A13,FILTRO.12!A5:K334,3,FALSE),0) -> 0 | F13: =IFERROR(VLOOKUP($A13,FILTRO.12!A5:K334,4,FALSE),0) -> 0 | G13: =IFERROR(VLOOKUP($A13,FILTRO.12!A5:K334,5,FALSE),0) -> 0
A14: 80301002 | B14: 0301002 | C14: Acido fólico o folatos | D14: =SUM(E14:F14) -> 0 | E14: =IFERROR(VLOOKUP($A14,FILTRO.12!A6:K335,3,FALSE),0) -> 0 | F14: =IFERROR(VLOOKUP($A14,FILTRO.12!A6:K335,4,FALSE),0) -> 0 | G14: =IFERROR(VLOOKUP($A14,FILTRO.12!A6:K335,5,FALSE),0) -> 4
A15: 80301003 | B15: 0301003 | C15: Adenograma, esplenograma, mielograma c/u | D15: =SUM(E15:F15) -> 0 | E15: =IFERROR(VLOOKUP($A15,FILTRO.12!A7:K336,3,FALSE),0) -> 0 | F15: =IFERROR(VLOOKUP($A15,FILTRO.12!A7:K336,4,FALSE),0) -> 0 | G15: =IFERROR(VLOOKUP($A15,FILTRO.12!A7:K336,5,FALSE),0) -> 0
A16: 80301004 | B16: 0301004 | C16: Adhesividad plaquetaria | D16: 0 | E16: =IFERROR(VLOOKUP($A16,FILTRO.12!A8:K337,3,FALSE),0) -> 0 | F16: =IFERROR(VLOOKUP($A16,FILTRO.12!A8:K337,4,FALSE),0) -> 0 | G16: =IFERROR(VLOOKUP($A16,FILTRO.12!A8:K337,5,FALSE),0) -> 0
A17: 80301005 | B17: 0301005 | C17: Aglutininas anti Rho | D17: 0 | E17: =IFERROR(VLOOKUP($A17,FILTRO.12!A9:K338,3,FALSE),0) -> 0 | F17: =IFERROR(VLOOKUP($A17,FILTRO.12!A9:K338,4,FALSE),0) -> 0 | G17: =IFERROR(VLOOKUP($A17,FILTRO.12!A9:K338,5,FALSE),0) -> 0
A18: 80301006 | B18: 0301006 | C18: Agregación plaquetaria | D18: 0 | E18: =IFERROR(VLOOKUP($A18,FILTRO.12!A10:K339,3,FALSE),0) -> 0 | F18: =IFERROR(VLOOKUP($A18,FILTRO.12!A10:K339,4,FALSE),0) -> 0 | G18: =IFERROR(VLOOKUP($A18,FILTRO.12!A10:K339,5,FALSE),0) -> 0
A19: 80301007 | B19: 0301007 | C19: Anticoagulantes circulantes o anticoagulante lúpico | D19: 0 | E19: =IFERROR(VLOOKUP($A19,FILTRO.12!A11:K340,3,FALSE),0) -> 0 | F19: =IFERROR(VLOOKUP($A19,FILTRO.12!A11:K340,4,FALSE),0) -> 0 | G19: =IFERROR(VLOOKUP($A19,FILTRO.12!A11:K340,5,FALSE),0) -> 0
A20: 80301008 | B20: 0301008 | C20: Antitrombina III | D20: 0 | E20: =IFERROR(VLOOKUP($A20,FILTRO.12!A12:K341,3,FALSE),0) -> 0 | F20: =IFERROR(VLOOKUP($A20,FILTRO.12!A12:K341,4,FALSE),0) -> 0 | G20: =IFERROR(VLOOKUP($A20,FILTRO.12!A12:K341,5,FALSE),0) -> 0
A21: 80301009 | B21: 0301009 | C21: Auto-hemólisis test, con y sin glucosa | D21: 0 | E21: =IFERROR(VLOOKUP($A21,FILTRO.12!A13:K342,3,FALSE),0) -> 0 | F21: =IFERROR(VLOOKUP($A21,FILTRO.12!A13:K342,4,FALSE),0) -> 0 | G21: =IFERROR(VLOOKUP($A21,FILTRO.12!A13:K342,5,FALSE),0) -> 0
A22: 80301010 | B22: 0301010 | C22: Células del lupus, cada muestra | D22: 0 | E22: =IFERROR(VLOOKUP($A22,FILTRO.12!A14:K343,3,FALSE),0) -> 0 | F22: =IFERROR(VLOOKUP($A22,FILTRO.12!A14:K343,4,FALSE),0) -> 0 | G22: =IFERROR(VLOOKUP($A22,FILTRO.12!A14:K343,5,FALSE),0) -> 0
A23: 80301011 | B23: 0301011 | C23: Coagulación, tiempo de | D23: 7 | E23: =IFERROR(VLOOKUP($A23,FILTRO.12!A15:K344,3,FALSE),0) -> 0 | F23: =IFERROR(VLOOKUP($A23,FILTRO.12!A15:K344,4,FALSE),0) -> 7 | G23: =IFERROR(VLOOKUP($A23,FILTRO.12!A15:K344,5,FALSE),0) -> 539
A24: 80301012 | B24: 0301012 | C24: Coágulo, tiempo de retracción del | D24: 0 | E24: =IFERROR(VLOOKUP($A24,FILTRO.12!A16:K345,3,FALSE),0) -> 0 | F24: =IFERROR(VLOOKUP($A24,FILTRO.12!A16:K345,4,FALSE),0) -> 0 | G24: =IFERROR(VLOOKUP($A24,FILTRO.12!A16:K345,5,FALSE),0) -> 0
A25: 80301013 | B25: 0301013 | C25: Coágulo, tiempo de lisis del | D25: 0 | E25: =IFERROR(VLOOKUP($A25,FILTRO.12!A17:K346,3,FALSE),0) -> 0 | F25: =IFERROR(VLOOKUP($A25,FILTRO.12!A17:K346,4,FALSE),0) -> 0 | G25: =IFERROR(VLOOKUP($A25,FILTRO.12!A17:K346,5,FALSE),0) -> 0
A26: 80301014 | B26: 0301014 | C26: Coombs directo, test de | D26: 5 | E26: =IFERROR(VLOOKUP($A26,FILTRO.12!A18:K347,3,FALSE),0) -> 0 | F26: =IFERROR(VLOOKUP($A26,FILTRO.12!A18:K347,4,FALSE),0) -> 5 | G26: =IFERROR(VLOOKUP($A26,FILTRO.12!A18:K347,5,FALSE),0) -> 83
A27: 80301015 | B27: 0301015 | C27: Coombs indirecto, prueba de | D27: 31 | E27: =IFERROR(VLOOKUP($A27,FILTRO.12!A19:K348,3,FALSE),0) -> 0 | F27: =IFERROR(VLOOKUP($A27,FILTRO.12!A19:K348,4,FALSE),0) -> 31 | G27: =IFERROR(VLOOKUP($A27,FILTRO.12!A19:K348,5,FALSE),0) -> 1,639
A28: 80301016 | B28: 0301016 | C28: Cuerpos de Heinz | D28: 0 | E28: =IFERROR(VLOOKUP($A28,FILTRO.12!A20:K349,3,FALSE),0) -> 0 | F28: =IFERROR(VLOOKUP($A28,FILTRO.12!A20:K349,4,FALSE),0) -> 0 | G28: =IFERROR(VLOOKUP($A28,FILTRO.12!A20:K349,5,FALSE),0) -> 0
A29: 80301017 | B29: 0301017 | C29: Deshidrogenasa glucosa-6-fosfato en eritrocitos | D29: 0 | E29: =IFERROR(VLOOKUP($A29,FILTRO.12!A21:K350,3,FALSE),0) -> 0 | F29: =IFERROR(VLOOKUP($A29,FILTRO.12!A21:K350,4,FALSE),0) -> 0 | G29: =IFERROR(VLOOKUP($A29,FILTRO.12!A21:K350,5,FALSE),0) -> 4
A30: 80301020 | B30: 0301020 | C30: Euglobulinas, tiempo de lisis de | D30: 0 | E30: =IFERROR(VLOOKUP($A30,FILTRO.12!A22:K351,3,FALSE),0) -> 0 | F30: =IFERROR(VLOOKUP($A30,FILTRO.12!A22:K351,4,FALSE),0) -> 0 | G30: =IFERROR(VLOOKUP($A30,FILTRO.12!A22:K351,5,FALSE),0) -> 0
A31: 80301021 | B31: 0301021 | C31: Fibrinógeno | D31: 0 | E31: =IFERROR(VLOOKUP($A31,FILTRO.12!A23:K352,3,FALSE),0) -> 0 | F31: =IFERROR(VLOOKUP($A31,FILTRO.12!A23:K352,4,FALSE),0) -> 0 | G31: =IFERROR(VLOOKUP($A31,FILTRO.12!A23:K352,5,FALSE),0) -> 0
A32: 80301022 | B32: 0301022 | C32: Test de neutralización plaquetaria | D32: 0 | E32: =IFERROR(VLOOKUP($A32,FILTRO.12!A24:K353,3,FALSE),0) -> 0 | F32: =IFERROR(VLOOKUP($A32,FILTRO.12!A24:K353,4,FALSE),0) -> 0 | G32: =IFERROR(VLOOKUP($A32,FILTRO.12!A24:K353,5,FALSE),0) -> 0
A33: 80301023 | B33: 0301023 | C33: Factor III plaquetario | D33: 0 | E33: =IFERROR(VLOOKUP($A33,FILTRO.12!A25:K354,3,FALSE),0) -> 0 | F33: =IFERROR(VLOOKUP($A33,FILTRO.12!A25:K354,4,FALSE),0) -> 0 | G33: =IFERROR(VLOOKUP($A33,FILTRO.12!A25:K354,5,FALSE),0) -> 0
A34: 80301024 | B34: 0301024 | C34: Factor V | D34: 0 | E34: =IFERROR(VLOOKUP($A34,FILTRO.12!A26:K355,3,FALSE),0) -> 0 | F34: =IFERROR(VLOOKUP($A34,FILTRO.12!A26:K355,4,FALSE),0) -> 0 | G34: =IFERROR(VLOOKUP($A34,FILTRO.12!A26:K355,5,FALSE),0) -> 0
A35: 80301025 | B35: 0301025 | C35: Factores VII, VIII, IX, X, XI, XII, XIII, c/u | D35: 0 | E35: =IFERROR(VLOOKUP($A35,FILTRO.12!A27:K356,3,FALSE),0) -> 0 | F35: =IFERROR(VLOOKUP($A35,FILTRO.12!A27:K356,4,FALSE),0) -> 0 | G35: =IFERROR(VLOOKUP($A35,FILTRO.12!A27:K356,5,FALSE),0) -> 0
A36: 80301026 | B36: 0301026 | C36: Ferritina | D36: 0 | E36: =IFERROR(VLOOKUP($A36,FILTRO.12!A28:K357,3,FALSE),0) -> 0 | F36: =IFERROR(VLOOKUP($A36,FILTRO.12!A28:K357,4,FALSE),0) -> 0 | G36: =IFERROR(VLOOKUP($A36,FILTRO.12!A28:K357,5,FALSE),0) -> 3
A37: 80301027 | B37: 0301027 | C37: Fibrinógeno, productos de degradación del | D37: 0 | E37: =IFERROR(VLOOKUP($A37,FILTRO.12!A29:K358,3,FALSE),0) -> 0 | F37: =IFERROR(VLOOKUP($A37,FILTRO.12!A29:K358,4,FALSE),0) -> 0 | G37: =IFERROR(VLOOKUP($A37,FILTRO.12!A29:K358,5,FALSE),0) -> 0
A38: 80301028 | B38: 0301028 | C38: Fierro sérico | D38: 0 | E38: =IFERROR(VLOOKUP($A38,FILTRO.12!A30:K359,3,FALSE),0) -> 0 | F38: =IFERROR(VLOOKUP($A38,FILTRO.12!A30:K359,4,FALSE),0) -> 0 | G38: =IFERROR(VLOOKUP($A38,FILTRO.12!A30:K359,5,FALSE),0) -> 0
A39: 80301029 | B39: 0301029 | C39: Fierro, capacidad de fijación del (incluye fierro sérico) | D39: 0 | E39: =IFERROR(VLOOKUP($A39,FILTRO.12!A31:K360,3,FALSE),0) -> 0 | F39: =IFERROR(VLOOKUP($A39,FILTRO.12!A31:K360,4,FALSE),0) -> 0 | G39: =IFERROR(VLOOKUP($A39,FILTRO.12!A31:K360,5,FALSE),0) -> 0
A40: 80301030 | B40: 0301030 | C40: Fierro, cinética del (cada determinación) | D40: 0 | E40: =IFERROR(VLOOKUP($A40,FILTRO.12!A32:K361,3,FALSE),0) -> 0 | F40: =IFERROR(VLOOKUP($A40,FILTRO.12!A32:K361,4,FALSE),0) -> 0 | G40: =IFERROR(VLOOKUP($A40,FILTRO.12!A32:K361,5,FALSE),0) -> 3
A41: 80301032 | B41: 0301032 | C41: Gelación por etanol | D41: 0 | E41: =IFERROR(VLOOKUP($A41,FILTRO.12!A33:K362,3,FALSE),0) -> 0 | F41: =IFERROR(VLOOKUP($A41,FILTRO.12!A33:K362,4,FALSE),0) -> 0 | G41: =IFERROR(VLOOKUP($A41,FILTRO.12!A33:K362,5,FALSE),0) -> 0
A42: 80301033 | B42: 0301033 | C42: Grupos menores. Tipificación o determinación de otros sistemas sanguíneos (Kell, Duffy, Kidd y otros) c/u. | D42: 0 | E42: =IFERROR(VLOOKUP($A42,FILTRO.12!A34:K363,3,FALSE),0) -> 0 | F42: =IFERROR(VLOOKUP($A42,FILTRO.12!A34:K363,4,FALSE),0) -> 0 | G42: =IFERROR(VLOOKUP($A42,FILTRO.12!A34:K363,5,FALSE),0) -> 5
A43: 80301034 | B43: 0301034 | C43: Grupos sanguíneos AB0 y Rho (incluye estudio de factor Du en Rh negativos) | D43: 1,236 | E43: =IFERROR(VLOOKUP($A43,FILTRO.12!A35:K364,3,FALSE),0) -> 0 | F43: =IFERROR(VLOOKUP($A43,FILTRO.12!A35:K364,4,FALSE),0) -> 1,236 | G43: =IFERROR(VLOOKUP($A43,FILTRO.12!A35:K364,5,FALSE),0) -> 2,619
A44: 80301035 | B44: 0301035 | C44: Haptoglobina cuantitativa | D44: 0 | E44: =IFERROR(VLOOKUP($A44,FILTRO.12!A36:K365,3,FALSE),0) -> 0 | F44: =IFERROR(VLOOKUP($A44,FILTRO.12!A36:K365,4,FALSE),0) -> 0 | G44: =IFERROR(VLOOKUP($A44,FILTRO.12!A36:K365,5,FALSE),0) -> 489
A45: 80301036 | B45: 0301036 | C45: Hematocrito (proc. aut.) | D45: 3,755 | E45: =IFERROR(VLOOKUP($A45,FILTRO.12!A37:K366,3,FALSE),0) -> 0 | F45: =IFERROR(VLOOKUP($A45,FILTRO.12!A37:K366,4,FALSE),0) -> 3,755 | G45: =IFERROR(VLOOKUP($A45,FILTRO.12!A37:K366,5,FALSE),0) -> 37,440
A46: 80301038 | B46: 0301038 | C46: Hemoglobina en sangre total (proc. aut.) | D46: 1,719 | E46: =IFERROR(VLOOKUP($A46,FILTRO.12!A38:K367,3,FALSE),0) -> 0 | F46: =IFERROR(VLOOKUP($A46,FILTRO.12!A38:K367,4,FALSE),0) -> 1,719 | G46: =IFERROR(VLOOKUP($A46,FILTRO.12!A38:K367,5,FALSE),0) -> 33,010
A47: 80301039 | B47: 0301039 | C47: Hemoglobina fetal cualitativa | D47: 0 | E47: =IFERROR(VLOOKUP($A47,FILTRO.12!A39:K368,3,FALSE),0) -> 0 | F47: =IFERROR(VLOOKUP($A47,FILTRO.12!A39:K368,4,FALSE),0) -> 0 | G47: =IFERROR(VLOOKUP($A47,FILTRO.12!A39:K368,5,FALSE),0) -> 0
A48: 80301040 | B48: 0301040 | C48: Hemoglobina fetal cuantitativa en eritrocitos | D48: 6 | E48: =IFERROR(VLOOKUP($A48,FILTRO.12!A40:K369,3,FALSE),0) -> 0 | F48: =IFERROR(VLOOKUP($A48,FILTRO.12!A40:K369,4,FALSE),0) -> 6 | G48: =IFERROR(VLOOKUP($A48,FILTRO.12!A40:K369,5,FALSE),0) -> 6
A49: 80301041 | B49: 0301041 | C49: Hemoglobina glicosilada | D49: 30,268 | E49: =IFERROR(VLOOKUP($A49,FILTRO.12!A41:K370,3,FALSE),0) -> 0 | F49: =IFERROR(VLOOKUP($A49,FILTRO.12!A41:K370,4,FALSE),0) -> 30,268 | G49: =IFERROR(VLOOKUP($A49,FILTRO.12!A41:K370,5,FALSE),0) -> 58,722
A50: 80301042 | B50: 0301042 | C50: Hemoglobina plasmática | D50: 0 | E50: =IFERROR(VLOOKUP($A50,FILTRO.12!A42:K371,3,FALSE),0) -> 0 | F50: =IFERROR(VLOOKUP($A50,FILTRO.12!A42:K371,4,FALSE),0) -> 0 | G50: =IFERROR(VLOOKUP($A50,FILTRO.12!A42:K371,5,FALSE),0) -> 1
A51: 80301043 | B51: 0301043 | C51: Hemoglobina termolabil | D51: 0 | E51: =IFERROR(VLOOKUP($A51,FILTRO.12!A43:K372,3,FALSE),0) -> 0 | F51: =IFERROR(VLOOKUP($A51,FILTRO.12!A43:K372,4,FALSE),0) -> 0 | G51: =IFERROR(VLOOKUP($A51,FILTRO.12!A43:K372,5,FALSE),0) -> 0
A52: 80301044 | B52: 0301044 | C52: Hemoglobina, electroforesis de (incluye Hb. total) | D52: 0 | E52: =IFERROR(VLOOKUP($A52,FILTRO.12!A44:K373,3,FALSE),0) -> 0 | F52: =IFERROR(VLOOKUP($A52,FILTRO.12!A44:K373,4,FALSE),0) -> 0 | G52: =IFERROR(VLOOKUP($A52,FILTRO.12!A44:K373,5,FALSE),0) -> 0
A53: 80301045 | B53: 0301045 | C53: Hemograma (incluye recuentos de leucocitos y eritrocitos, hemoglobina, hematocrito, fórmula leucocitaria, características de los elementos figurados y velocidad de eritrosedimentación) | D53: 51,290 | E53: =IFERROR(VLOOKUP($A53,FILTRO.12!A45:K374,3,FALSE),0) -> 0 | F53: =IFERROR(VLOOKUP($A53,FILTRO.12!A45:K374,4,FALSE),0) -> 51,290 | G53: =IFERROR(VLOOKUP($A53,FILTRO.12!A45:K374,5,FALSE),0) -> 73,405
A54: 80301046 | B54: 0301046 | C54: Hemolisinas | D54: 0 | E54: =IFERROR(VLOOKUP($A54,FILTRO.12!A46:K375,3,FALSE),0) -> 0 | F54: =IFERROR(VLOOKUP($A54,FILTRO.12!A46:K375,4,FALSE),0) -> 0 | G54: =IFERROR(VLOOKUP($A54,FILTRO.12!A46:K375,5,FALSE),0) -> 3,707
A55: 80301047 | B55: 0301047 | C55: Hemólisis con sucrosa, test de | D55: 0 | E55: =IFERROR(VLOOKUP($A55,FILTRO.12!A47:K376,3,FALSE),0) -> 0 | F55: =IFERROR(VLOOKUP($A55,FILTRO.12!A47:K376,4,FALSE),0) -> 0 | G55: =IFERROR(VLOOKUP($A55,FILTRO.12!A47:K376,5,FALSE),0) -> 0
A56: 80301048 | B56: 0301048 | C56: Hemosiderina medular | D56: 0 | E56: =IFERROR(VLOOKUP($A56,FILTRO.12!A48:K377,3,FALSE),0) -> 0 | F56: =IFERROR(VLOOKUP($A56,FILTRO.12!A48:K377,4,FALSE),0) -> 0 | G56: =IFERROR(VLOOKUP($A56,FILTRO.12!A48:K377,5,FALSE),0) -> 0
A57: 80301049 | B57: 0301049 | C57: Heparina, cuantificación de | D57: 0 | E57: =IFERROR(VLOOKUP($A57,FILTRO.12!A49:K378,3,FALSE),0) -> 0 | F57: =IFERROR(VLOOKUP($A57,FILTRO.12!A49:K378,4,FALSE),0) -> 0 | G57: =IFERROR(VLOOKUP($A57,FILTRO.12!A49:K378,5,FALSE),0) -> 0
A58: 80301050 | B58: 0301050 | C58: Isoinmunización, detección de anticuerpos irregulares (proc. aut.). | D58: 0 | E58: =IFERROR(VLOOKUP($A58,FILTRO.12!A50:K379,3,FALSE),0) -> 0 | F58: =IFERROR(VLOOKUP($A58,FILTRO.12!A50:K379,4,FALSE),0) -> 0 | G58: =IFERROR(VLOOKUP($A58,FILTRO.12!A50:K379,5,FALSE),0) -> 0
A59: 80301051 | B59: 0301051 | C59: Isoinmunización, detección e identificación de anticuerpos | D59: 0 | E59: =IFERROR(VLOOKUP($A59,FILTRO.12!A51:K380,3,FALSE),0) -> 0 | F59: =IFERROR(VLOOKUP($A59,FILTRO.12!A51:K380,4,FALSE),0) -> 0 | G59: =IFERROR(VLOOKUP($A59,FILTRO.12!A51:K380,5,FALSE),0) -> 0
A60: 80301052 | B60: 0301052 | C60: Isopropanol, test de | D60: 0 | E60: =IFERROR(VLOOKUP($A60,FILTRO.12!A52:K381,3,FALSE),0) -> 0 | F60: =IFERROR(VLOOKUP($A60,FILTRO.12!A52:K381,4,FALSE),0) -> 0 | G60: =IFERROR(VLOOKUP($A60,FILTRO.12!A52:K381,5,FALSE),0) -> 0
A61: 80301053 | B61: 0301053 | C61: Metahemalbúmina | D61: 0 | E61: =IFERROR(VLOOKUP($A61,FILTRO.12!A53:K382,3,FALSE),0) -> 0 | F61: =IFERROR(VLOOKUP($A61,FILTRO.12!A53:K382,4,FALSE),0) -> 0 | G61: =IFERROR(VLOOKUP($A61,FILTRO.12!A53:K382,5,FALSE),0) -> 0
A62: 80301054 | B62: 0301054 | C62: Metahemoglobina | D62: 0 | E62: =IFERROR(VLOOKUP($A62,FILTRO.12!A54:K383,3,FALSE),0) -> 0 | F62: =IFERROR(VLOOKUP($A62,FILTRO.12!A54:K383,4,FALSE),0) -> 0 | G62: =IFERROR(VLOOKUP($A62,FILTRO.12!A54:K383,5,FALSE),0) -> 0
A63: 80301055 | B63: 0301055 | C63: Muraminidasa en eritrocitos | D63: 0 | E63: =IFERROR(VLOOKUP($A63,FILTRO.12!A55:K384,3,FALSE),0) -> 0 | F63: =IFERROR(VLOOKUP($A63,FILTRO.12!A55:K384,4,FALSE),0) -> 0 | G63: =IFERROR(VLOOKUP($A63,FILTRO.12!A55:K384,5,FALSE),0) -> 0
A64: 80301056 | B64: 0301056 | C64: Piruvatoquinasa en eritrocitos | D64: 0 | E64: =IFERROR(VLOOKUP($A64,FILTRO.12!A56:K385,3,FALSE),0) -> 0 | F64: =IFERROR(VLOOKUP($A64,FILTRO.12!A56:K385,4,FALSE),0) -> 0 | G64: =IFERROR(VLOOKUP($A64,FILTRO.12!A56:K385,5,FALSE),0) -> 0
A65: 80301057 | B65: 0301057 | C65: Protamina sulfato, determinación de | D65: 0 | E65: =IFERROR(VLOOKUP($A65,FILTRO.12!A57:K386,3,FALSE),0) -> 0 | F65: =IFERROR(VLOOKUP($A65,FILTRO.12!A57:K386,4,FALSE),0) -> 0 | G65: =IFERROR(VLOOKUP($A65,FILTRO.12!A57:K386,5,FALSE),0) -> 0
A66: 80301058 | B66: 0301058 | C66: Protoporfirinas en eritrocitos | D66: 0 | E66: =IFERROR(VLOOKUP($A66,FILTRO.12!A58:K387,3,FALSE),0) -> 0 | F66: =IFERROR(VLOOKUP($A66,FILTRO.12!A58:K387,4,FALSE),0) -> 0 | G66: =IFERROR(VLOOKUP($A66,FILTRO.12!A58:K387,5,FALSE),0) -> 0
A67: 80301059 | B67: 0301059 | C67: Protrombina, tiempo de o consumo de (incluye INR, Relación Internacional Normalizada) | D67: 3,350 | E67: =IFERROR(VLOOKUP($A67,FILTRO.12!A59:K388,3,FALSE),0) -> 0 | F67: =IFERROR(VLOOKUP($A67,FILTRO.12!A59:K388,4,FALSE),0) -> 3,350 | G67: =IFERROR(VLOOKUP($A67,FILTRO.12!A59:K388,5,FALSE),0) -> 3,183
A68: 80301062 | B68: 0301062 | C68: Recuento de basófilos (absoluto) | D68: 0 | E68: =IFERROR(VLOOKUP($A68,FILTRO.12!A60:K389,3,FALSE),0) -> 0 | F68: =IFERROR(VLOOKUP($A68,FILTRO.12!A60:K389,4,FALSE),0) -> 0 | G68: =IFERROR(VLOOKUP($A68,FILTRO.12!A60:K389,5,FALSE),0) -> 0
A69: 80301063 | B69: 0301063 | C69: Recuento de eosinófilos (absoluto) | D69: 0 | E69: =IFERROR(VLOOKUP($A69,FILTRO.12!A61:K390,3,FALSE),0) -> 0 | F69: =IFERROR(VLOOKUP($A69,FILTRO.12!A61:K390,4,FALSE),0) -> 0 | G69: =IFERROR(VLOOKUP($A69,FILTRO.12!A61:K390,5,FALSE),0) -> 0
A70: 80301064 | B70: 0301064 | C70: Recuento de eritrocitos, absoluto (proc. aut.) | D70: 0 | E70: =IFERROR(VLOOKUP($A70,FILTRO.12!A62:K391,3,FALSE),0) -> 0 | F70: =IFERROR(VLOOKUP($A70,FILTRO.12!A62:K391,4,FALSE),0) -> 0 | G70: =IFERROR(VLOOKUP($A70,FILTRO.12!A62:K391,5,FALSE),0) -> 0
A71: 80301065 | B71: 0301065 | C71: Recuento de leucocitos, absoluto (proc. aut.) | D71: 24 | E71: =IFERROR(VLOOKUP($A71,FILTRO.12!A63:K392,3,FALSE),0) -> 0 | F71: =IFERROR(VLOOKUP($A71,FILTRO.12!A63:K392,4,FALSE),0) -> 24 | G71: =IFERROR(VLOOKUP($A71,FILTRO.12!A63:K392,5,FALSE),0) -> 36
A72: 80301066 | B72: 0301066 | C72: Recuento de linfocitos (absoluto) | D72: 0 | E72: =IFERROR(VLOOKUP($A72,FILTRO.12!A64:K393,3,FALSE),0) -> 0 | F72: =IFERROR(VLOOKUP($A72,FILTRO.12!A64:K393,4,FALSE),0) -> 0 | G72: =IFERROR(VLOOKUP($A72,FILTRO.12!A64:K393,5,FALSE),0) -> 0
A73: 80301067 | B73: 0301067 | C73: Recuento de plaquetas (absoluto) | D73: 159 | E73: =IFERROR(VLOOKUP($A73,FILTRO.12!A65:K394,3,FALSE),0) -> 0 | F73: =IFERROR(VLOOKUP($A73,FILTRO.12!A65:K394,4,FALSE),0) -> 159 | G73: =IFERROR(VLOOKUP($A73,FILTRO.12!A65:K394,5,FALSE),0) -> 67
A74: 80301068 | B74: 0301068 | C74: Recuento de reticulocitos (absoluto o porcentual) | D74: 0 | E74: =IFERROR(VLOOKUP($A74,FILTRO.12!A66:K395,3,FALSE),0) -> 0 | F74: =IFERROR(VLOOKUP($A74,FILTRO.12!A66:K395,4,FALSE),0) -> 0 | G74: =IFERROR(VLOOKUP($A74,FILTRO.12!A66:K395,5,FALSE),0) -> 0
A75: 80301069 | B75: 0301069 | C75: Recuento diferencial o fórmula leucocitaria (proc. aut.) | D75: 0 | E75: =IFERROR(VLOOKUP($A75,FILTRO.12!A67:K396,3,FALSE),0) -> 0 | F75: =IFERROR(VLOOKUP($A75,FILTRO.12!A67:K396,4,FALSE),0) -> 0 | G75: =IFERROR(VLOOKUP($A75,FILTRO.12!A67:K396,5,FALSE),0) -> 1
A76: 80301070 | B76: 0301070 | C76: Resistencia globular osmótica | D76: 0 | E76: =IFERROR(VLOOKUP($A76,FILTRO.12!A68:K397,3,FALSE),0) -> 0 | F76: =IFERROR(VLOOKUP($A76,FILTRO.12!A68:K397,4,FALSE),0) -> 0 | G76: =IFERROR(VLOOKUP($A76,FILTRO.12!A68:K397,5,FALSE),0) -> 0
A77: 80301071 | B77: 0301071 | C77: Sacarosa, prueba de la | D77: 0 | E77: =IFERROR(VLOOKUP($A77,FILTRO.12!A69:K398,3,FALSE),0) -> 0 | F77: =IFERROR(VLOOKUP($A77,FILTRO.12!A69:K398,4,FALSE),0) -> 0 | G77: =IFERROR(VLOOKUP($A77,FILTRO.12!A69:K398,5,FALSE),0) -> 0
A78: 80301072 | B78: 0301072 | C78: Sangría, tiempo de (Ivy) (no incluye dispositivo asociado ) | D78: 0 | E78: =IFERROR(VLOOKUP($A78,FILTRO.12!A70:K399,3,FALSE),0) -> 0 | F78: =IFERROR(VLOOKUP($A78,FILTRO.12!A70:K399,4,FALSE),0) -> 0 | G78: =IFERROR(VLOOKUP($A78,FILTRO.12!A70:K399,5,FALSE),0) -> 0
A79: 80301074 | B79: 0301074 | C79: Sobrevida del eritrocito (Cr 51 o similar) | D79: =SUM(E79:F79) -> 0 | E79: =IFERROR(VLOOKUP($A79,FILTRO.12!A71:K400,3,FALSE),0) -> 0 | F79: =IFERROR(VLOOKUP($A79,FILTRO.12!A71:K400,4,FALSE),0) -> 0 | G79: =IFERROR(VLOOKUP($A79,FILTRO.12!A71:K400,5,FALSE),0) -> 0
A80: 80301075 | B80: 0301075 | C80: Subgrupo ABO y Rh fenotipo - genotipo Rh, c/u | D80: 32 | E80: =IFERROR(VLOOKUP($A80,FILTRO.12!A72:K401,3,FALSE),0) -> 0 | F80: =IFERROR(VLOOKUP($A80,FILTRO.12!A72:K401,4,FALSE),0) -> 32 | G80: =IFERROR(VLOOKUP($A80,FILTRO.12!A72:K401,5,FALSE),0) -> 363
A81: 80301076 | B81: 0301076 | C81: Thorn, prueba de (no incluye ACTH) | D81: 0 | E81: =IFERROR(VLOOKUP($A81,FILTRO.12!A73:K402,3,FALSE),0) -> 0 | F81: =IFERROR(VLOOKUP($A81,FILTRO.12!A73:K402,4,FALSE),0) -> 0 | G81: =IFERROR(VLOOKUP($A81,FILTRO.12!A73:K402,5,FALSE),0) -> 0
A82: 80301077 | B82: 0301077 | C82: Tinción de estearasa | D82: 0 | E82: =IFERROR(VLOOKUP($A82,FILTRO.12!A74:K403,3,FALSE),0) -> 0 | F82: =IFERROR(VLOOKUP($A82,FILTRO.12!A74:K403,4,FALSE),0) -> 0 | G82: =IFERROR(VLOOKUP($A82,FILTRO.12!A74:K403,5,FALSE),0) -> 0
A83: 80301078 | B83: 0301078 | C83: Tinción de fosfatasas alcalinas o ácidas | D83: 0 | E83: =IFERROR(VLOOKUP($A83,FILTRO.12!A75:K404,3,FALSE),0) -> 0 | F83: =IFERROR(VLOOKUP($A83,FILTRO.12!A75:K404,4,FALSE),0) -> 0 | G83: =IFERROR(VLOOKUP($A83,FILTRO.12!A75:K404,5,FALSE),0) -> 4
A84: 80301079 | B84: 0301079 | C84: Tinción de glicógeno o PAS | D84: 0 | E84: =IFERROR(VLOOKUP($A84,FILTRO.12!A76:K405,3,FALSE),0) -> 0 | F84: =IFERROR(VLOOKUP($A84,FILTRO.12!A76:K405,4,FALSE),0) -> 0 | G84: =IFERROR(VLOOKUP($A84,FILTRO.12!A76:K405,5,FALSE),0) -> 0
A85: 80301080 | B85: 0301080 | C85: Tinción de lípidos | D85: 0 | E85: =IFERROR(VLOOKUP($A85,FILTRO.12!A77:K406,3,FALSE),0) -> 0 | F85: =IFERROR(VLOOKUP($A85,FILTRO.12!A77:K406,4,FALSE),0) -> 0 | G85: =IFERROR(VLOOKUP($A85,FILTRO.12!A77:K406,5,FALSE),0) -> 0
A86: 80301081 | B86: 0301081 | C86: Tinción de peroxidasas | D86: 0 | E86: =IFERROR(VLOOKUP($A86,FILTRO.12!A78:K407,3,FALSE),0) -> 0 | F86: =IFERROR(VLOOKUP($A86,FILTRO.12!A78:K407,4,FALSE),0) -> 0 | G86: =IFERROR(VLOOKUP($A86,FILTRO.12!A78:K407,5,FALSE),0) -> 0
A87: 80301082 | B87: 0301082 | C87: Transferrina | D87: 0 | E87: =IFERROR(VLOOKUP($A87,FILTRO.12!A79:K408,3,FALSE),0) -> 0 | F87: =IFERROR(VLOOKUP($A87,FILTRO.12!A79:K408,4,FALSE),0) -> 0 | G87: =IFERROR(VLOOKUP($A87,FILTRO.12!A79:K408,5,FALSE),0) -> 0
A88: 80301083 | B88: 0301083 | C88: Trombina, tiempo de | D88: 3 | E88: =IFERROR(VLOOKUP($A88,FILTRO.12!A80:K409,3,FALSE),0) -> 0 | F88: =IFERROR(VLOOKUP($A88,FILTRO.12!A80:K409,4,FALSE),0) -> 3 | G88: =IFERROR(VLOOKUP($A88,FILTRO.12!A80:K409,5,FALSE),0) -> 140
A89: 80301085 | B89: 0301085 | C89: Tromboplastina, tiempo parcial de (TTPA, TTPK o similares) | D89: 1,010 | E89: =IFERROR(VLOOKUP($A89,FILTRO.12!A81:K410,3,FALSE),0) -> 0 | F89: =IFERROR(VLOOKUP($A89,FILTRO.12!A81:K410,4,FALSE),0) -> 1,010 | G89: =IFERROR(VLOOKUP($A89,FILTRO.12!A81:K410,5,FALSE),0) -> 1,799
A90: 80301086 | B90: 0301086 | C90: Velocidad de eritrosedimentación (proc. aut.) | D90: 175 | E90: =IFERROR(VLOOKUP($A90,FILTRO.12!A82:K411,3,FALSE),0) -> 0 | F90: =IFERROR(VLOOKUP($A90,FILTRO.12!A82:K411,4,FALSE),0) -> 175 | G90: =IFERROR(VLOOKUP($A90,FILTRO.12!A82:K411,5,FALSE),0) -> 1,440
A91: 80301087 | B91: 0301087 | C91: Vitamina B12, absorción de (Co 57 o similar) | D91: 467 | E91: =IFERROR(VLOOKUP($A91,FILTRO.12!A83:K412,3,FALSE),0) -> 0 | F91: =IFERROR(VLOOKUP($A91,FILTRO.12!A83:K412,4,FALSE),0) -> 467 | G91: =IFERROR(VLOOKUP($A91,FILTRO.12!A83:K412,5,FALSE),0) -> 4,060
A92: 80301088 | B92: 0301088 | C92: Volemia (incluye volumen globular total, volumen plasmático total y volumen sanguíneo total) | D92: 0 | E92: =IFERROR(VLOOKUP($A92,FILTRO.12!A84:K413,3,FALSE),0) -> 0 | F92: =IFERROR(VLOOKUP($A92,FILTRO.12!A84:K413,4,FALSE),0) -> 0 | G92: =IFERROR(VLOOKUP($A92,FILTRO.12!A84:K413,5,FALSE),0) -> 2
A93: 80301089 | B93: 0301089 | C93: Von Willebrand, Ag de (factor VIII Ag.) | D93: 0 | E93: =IFERROR(VLOOKUP($A93,FILTRO.12!A85:K414,3,FALSE),0) -> 0 | F93: =IFERROR(VLOOKUP($A93,FILTRO.12!A85:K414,4,FALSE),0) -> 0 | G93: =IFERROR(VLOOKUP($A93,FILTRO.12!A85:K414,5,FALSE),0) -> 0
A94: 80301090 | B94: 0301090 | C94: Cofactor de Ristocetina | D94: 0 | E94: =IFERROR(VLOOKUP($A94,FILTRO.12!A86:K415,3,FALSE),0) -> 0 | F94: =IFERROR(VLOOKUP($A94,FILTRO.12!A86:K415,4,FALSE),0) -> 0 | G94: =IFERROR(VLOOKUP($A94,FILTRO.12!A86:K415,5,FALSE),0) -> 0
A95: 80301091 | B95: 0301091 | C95: Proteína C | D95: 0 | E95: =IFERROR(VLOOKUP($A95,FILTRO.12!A87:K416,3,FALSE),0) -> 0 | F95: =IFERROR(VLOOKUP($A95,FILTRO.12!A87:K416,4,FALSE),0) -> 0 | G95: =IFERROR(VLOOKUP($A95,FILTRO.12!A87:K416,5,FALSE),0) -> 1
A96: 80301092 | B96: 0301092 | C96: Proteína S | D96: 0 | E96: =IFERROR(VLOOKUP($A96,FILTRO.12!A88:K417,3,FALSE),0) -> 0 | F96: =IFERROR(VLOOKUP($A96,FILTRO.12!A88:K417,4,FALSE),0) -> 0 | G96: =IFERROR(VLOOKUP($A96,FILTRO.12!A88:K417,5,FALSE),0) -> 0
A97: 80301093 | B97: 0301093 | C97: Resistencia Proteína C | D97: 0 | E97: =IFERROR(VLOOKUP($A97,FILTRO.12!A89:K418,3,FALSE),0) -> 0 | F97: =IFERROR(VLOOKUP($A97,FILTRO.12!A89:K418,4,FALSE),0) -> 0 | G97: =IFERROR(VLOOKUP($A97,FILTRO.12!A89:K418,5,FALSE),0) -> 0
B98: TOTAL | D98: =SUM(D13:D97) -> 93,537 | E98: =SUM(E13:E97) -> 0 | F98: =SUM(F13:F97) -> 93,537 | G98: =SUM(G13:G97) -> 222,775
B100: SANGRE BIOQUÍMICO
A101: 80302001 | B101: 0302001 | C101: Acetona cualitativa | D101: =SUM(E101:F101) -> 0 | E101: =IFERROR(VLOOKUP($A101,FILTRO.12!A5:K334,3,FALSE),0) -> 0 | F101: =IFERROR(VLOOKUP($A101,FILTRO.12!A5:K334,4,FALSE),0) -> 0 | G101: =IFERROR(VLOOKUP($A101,FILTRO.12!A5:K334,5,FALSE),0) -> 0
A102: 80302002 | B102: 0302002 | C102: Acido cítrico | D102: =SUM(E102:F102) -> 0 | E102: =IFERROR(VLOOKUP($A102,FILTRO.12!A6:K335,3,FALSE),0) -> 0 | F102: =IFERROR(VLOOKUP($A102,FILTRO.12!A6:K335,4,FALSE),0) -> 0 | G102: =IFERROR(VLOOKUP($A102,FILTRO.12!A6:K335,5,FALSE),0) -> 0
A103: 80302004 | B103: 0302004 | C103: Acido láctico | D103: 0 | E103: =IFERROR(VLOOKUP($A103,FILTRO.12!A7:K336,3,FALSE),0) -> 0 | F103: =IFERROR(VLOOKUP($A103,FILTRO.12!A7:K336,4,FALSE),0) -> 0 | G103: =IFERROR(VLOOKUP($A103,FILTRO.12!A7:K336,5,FALSE),0) -> 4
A104: 80302005 | B104: 0302005 | C104: Acido úrico, en sangre | D104: 28,331 | E104: =IFERROR(VLOOKUP($A104,FILTRO.12!A8:K337,3,FALSE),0) -> 0 | F104: =IFERROR(VLOOKUP($A104,FILTRO.12!A8:K337,4,FALSE),0) -> 28,331 | G104: =IFERROR(VLOOKUP($A104,FILTRO.12!A8:K337,5,FALSE),0) -> 38,916
A105: 80302006 | B105: 0302006 | C105: Alcohol etílico | D105: 30 | E105: =IFERROR(VLOOKUP($A105,FILTRO.12!A9:K338,3,FALSE),0) -> 30 | F105: =IFERROR(VLOOKUP($A105,FILTRO.12!A9:K338,4,FALSE),0) -> 0 | G105: =IFERROR(VLOOKUP($A105,FILTRO.12!A9:K338,5,FALSE),0) -> 119
A106: 80302007 | B106: 0302007 | C106: Aldolasa | D106: 0 | E106: =IFERROR(VLOOKUP($A106,FILTRO.12!A10:K339,3,FALSE),0) -> 0 | F106: =IFERROR(VLOOKUP($A106,FILTRO.12!A10:K339,4,FALSE),0) -> 0 | G106: =IFERROR(VLOOKUP($A106,FILTRO.12!A10:K339,5,FALSE),0) -> 0
A107: 80302008 | B107: 0302008 | C107: Amilasa, en sangre | D107: 0 | E107: =IFERROR(VLOOKUP($A107,FILTRO.12!A11:K340,3,FALSE),0) -> 0 | F107: =IFERROR(VLOOKUP($A107,FILTRO.12!A11:K340,4,FALSE),0) -> 0 | G107: =IFERROR(VLOOKUP($A107,FILTRO.12!A11:K340,5,FALSE),0) -> 17
A108: 80302009 | B108: 0302009 | C108: Aminoácidos, cualitativo en sangre | D108: 0 | E108: =IFERROR(VLOOKUP($A108,FILTRO.12!A12:K341,3,FALSE),0) -> 0 | F108: =IFERROR(VLOOKUP($A108,FILTRO.12!A12:K341,4,FALSE),0) -> 0 | G108: =IFERROR(VLOOKUP($A108,FILTRO.12!A12:K341,5,FALSE),0) -> 0
A109: 80302010 | B109: 0302010 | C109: Amonio | D109: 0 | E109: =IFERROR(VLOOKUP($A109,FILTRO.12!A13:K342,3,FALSE),0) -> 0 | F109: =IFERROR(VLOOKUP($A109,FILTRO.12!A13:K342,4,FALSE),0) -> 0 | G109: =IFERROR(VLOOKUP($A109,FILTRO.12!A13:K342,5,FALSE),0) -> 0
A110: 80302070 | B110: 0302070 | C110: Apolipoproteínas (A1, B u otras) | D110: =SUM(E110:F110) -> 0 | E110: =IFERROR(VLOOKUP($A110,FILTRO.12!A14:K343,3,FALSE),0) -> 0 | F110: =IFERROR(VLOOKUP($A110,FILTRO.12!A14:K343,4,FALSE),0) -> 0 | G110: =IFERROR(VLOOKUP($A110,FILTRO.12!A14:K343,5,FALSE),0) -> 0
A111: 80302011 | B111: 0302011 | C111: Bicarbonato (proc. aut.) | D111: 0 | E111: =IFERROR(VLOOKUP($A111,FILTRO.12!A15:K344,3,FALSE),0) -> 0 | F111: =IFERROR(VLOOKUP($A111,FILTRO.12!A15:K344,4,FALSE),0) -> 0 | G111: =IFERROR(VLOOKUP($A111,FILTRO.12!A15:K344,5,FALSE),0) -> 0
A112: 80302012 | B112: 0302012 | C112: Bilirrubina total (proc. aut.) | D112: =SUM(E112:F112) -> 203 | E112: =IFERROR(VLOOKUP($A112,FILTRO.12!A16:K345,3,FALSE),0) -> 0 | F112: =IFERROR(VLOOKUP($A112,FILTRO.12!A16:K345,4,FALSE),0) -> 203 | G112: =IFERROR(VLOOKUP($A112,FILTRO.12!A16:K345,5,FALSE),0) -> 811
A113: 80302013 | B113: 0302013 | C113: Bilirrubina total y conjugada | D113: 457 | E113: =IFERROR(VLOOKUP($A113,FILTRO.12!A17:K346,3,FALSE),0) -> 0 | F113: =IFERROR(VLOOKUP($A113,FILTRO.12!A17:K346,4,FALSE),0) -> 457 | G113: =IFERROR(VLOOKUP($A113,FILTRO.12!A17:K346,5,FALSE),0) -> 8,207
A114: 80302014 | B114: 0302014 | C114: Bromosulftaleína, prueba de (incluye medicamento y tomas de muestra) | D114: 0 | E114: =IFERROR(VLOOKUP($A114,FILTRO.12!A18:K347,3,FALSE),0) -> 0 | F114: =IFERROR(VLOOKUP($A114,FILTRO.12!A18:K347,4,FALSE),0) -> 0 | G114: =IFERROR(VLOOKUP($A114,FILTRO.12!A18:K347,5,FALSE),0) -> 0
A115: 80302015 | B115: 0302015 | C115: Calcio en sangre | D115: 140 | E115: =IFERROR(VLOOKUP($A115,FILTRO.12!A19:K348,3,FALSE),0) -> 0 | F115: =IFERROR(VLOOKUP($A115,FILTRO.12!A19:K348,4,FALSE),0) -> 140 | G115: =IFERROR(VLOOKUP($A115,FILTRO.12!A19:K348,5,FALSE),0) -> 1,935
A116: 80302016 | B116: 0302016 | C116: Calcio iónico, incluye proteínas totales | D116: 0 | E116: =IFERROR(VLOOKUP($A116,FILTRO.12!A20:K349,3,FALSE),0) -> 0 | F116: =IFERROR(VLOOKUP($A116,FILTRO.12!A20:K349,4,FALSE),0) -> 0 | G116: =IFERROR(VLOOKUP($A116,FILTRO.12!A20:K349,5,FALSE),0) -> 0
A117: 80302017 | B117: 0302017 | C117: Caroteno | D117: 0 | E117: =IFERROR(VLOOKUP($A117,FILTRO.12!A21:K350,3,FALSE),0) -> 0 | F117: =IFERROR(VLOOKUP($A117,FILTRO.12!A21:K350,4,FALSE),0) -> 0 | G117: =IFERROR(VLOOKUP($A117,FILTRO.12!A21:K350,5,FALSE),0) -> 0
A118: 80302018 | B118: 0302018 | C118: Caroteno, prueba de sobrecarga de (incluye tomas de muestra) | D118: 0 | E118: =IFERROR(VLOOKUP($A118,FILTRO.12!A22:K351,3,FALSE),0) -> 0 | F118: =IFERROR(VLOOKUP($A118,FILTRO.12!A22:K351,4,FALSE),0) -> 0 | G118: =IFERROR(VLOOKUP($A118,FILTRO.12!A22:K351,5,FALSE),0) -> 0
A119: 80302019 | B119: 0302019 | C119: Ceruloplasmina | D119: 0 | E119: =IFERROR(VLOOKUP($A119,FILTRO.12!A23:K352,3,FALSE),0) -> 0 | F119: =IFERROR(VLOOKUP($A119,FILTRO.12!A23:K352,4,FALSE),0) -> 0 | G119: =IFERROR(VLOOKUP($A119,FILTRO.12!A23:K352,5,FALSE),0) -> 0
A120: 80302020 | B120: 0302020 | C120: Cobre | D120: 0 | E120: =IFERROR(VLOOKUP($A120,FILTRO.12!A24:K353,3,FALSE),0) -> 0 | F120: =IFERROR(VLOOKUP($A120,FILTRO.12!A24:K353,4,FALSE),0) -> 0 | G120: =IFERROR(VLOOKUP($A120,FILTRO.12!A24:K353,5,FALSE),0) -> 32
A121: 80302067 | B121: 0302067 | C121: Colesterol total (proc. aut.) | D121: 4,612 | E121: =IFERROR(VLOOKUP($A121,FILTRO.12!A25:K354,3,FALSE),0) -> 0 | F121: =IFERROR(VLOOKUP($A121,FILTRO.12!A25:K354,4,FALSE),0) -> 4,612 | G121: =IFERROR(VLOOKUP($A121,FILTRO.12!A25:K354,5,FALSE),0) -> 61,386
A122: 80302068 | B122: 0302068 | C122: Colesterol HDL (proc. aut.) | D122: 1,509 | E122: =IFERROR(VLOOKUP($A122,FILTRO.12!A26:K355,3,FALSE),0) -> 0 | F122: =IFERROR(VLOOKUP($A122,FILTRO.12!A26:K355,4,FALSE),0) -> 1,509 | G122: =IFERROR(VLOOKUP($A122,FILTRO.12!A26:K355,5,FALSE),0) -> 50,980
A123: 80302021 | B123: 0302021 | C123: Colinesterasa en plasma o sangre total | D123: 0 | E123: =IFERROR(VLOOKUP($A123,FILTRO.12!A27:K356,3,FALSE),0) -> 0 | F123: =IFERROR(VLOOKUP($A123,FILTRO.12!A27:K356,4,FALSE),0) -> 0 | G123: =IFERROR(VLOOKUP($A123,FILTRO.12!A27:K356,5,FALSE),0) -> 68
A124: 80302022 | B124: 0302022 | C124: Creatina | D124: 0 | E124: =IFERROR(VLOOKUP($A124,FILTRO.12!A28:K357,3,FALSE),0) -> 0 | F124: =IFERROR(VLOOKUP($A124,FILTRO.12!A28:K357,4,FALSE),0) -> 0 | G124: =IFERROR(VLOOKUP($A124,FILTRO.12!A28:K357,5,FALSE),0) -> 5,225
A125: 80302023 | B125: 0302023 | C125: Creatinina en sangre | D125: 45,733 | E125: =IFERROR(VLOOKUP($A125,FILTRO.12!A29:K358,3,FALSE),0) -> 0 | F125: =IFERROR(VLOOKUP($A125,FILTRO.12!A29:K358,4,FALSE),0) -> 45,733 | G125: =IFERROR(VLOOKUP($A125,FILTRO.12!A29:K358,5,FALSE),0) -> 97,295
A126: 80302024 | B126: 0302024 | C126: Creatinina, depuración de (Clearence) (proc. aut.) | D126: 92 | E126: =IFERROR(VLOOKUP($A126,FILTRO.12!A30:K359,3,FALSE),0) -> 0 | F126: =IFERROR(VLOOKUP($A126,FILTRO.12!A30:K359,4,FALSE),0) -> 92 | G126: =IFERROR(VLOOKUP($A126,FILTRO.12!A30:K359,5,FALSE),0) -> 316
A127: 80302025 | B127: 0302025 | C127: Creatinquinasa CK - MB miocárdica | D127: 0 | E127: =IFERROR(VLOOKUP($A127,FILTRO.12!A31:K360,3,FALSE),0) -> 0 | F127: =IFERROR(VLOOKUP($A127,FILTRO.12!A31:K360,4,FALSE),0) -> 0 | G127: =IFERROR(VLOOKUP($A127,FILTRO.12!A31:K360,5,FALSE),0) -> 10
A128: 80302026 | B128: 0302026 | C128: Creatinquinasa CK - total | D128: 6 | E128: =IFERROR(VLOOKUP($A128,FILTRO.12!A32:K361,3,FALSE),0) -> 0 | F128: =IFERROR(VLOOKUP($A128,FILTRO.12!A32:K361,4,FALSE),0) -> 6 | G128: =IFERROR(VLOOKUP($A128,FILTRO.12!A32:K361,5,FALSE),0) -> 311
A129: 80302028 | B129: 0302028 | C129: Depuraciones (Clearance) exógenas de Hipurán, Rojo Congo, manitol e inulina, c/u (no incluye medicamento) | D129: 21 | E129: =IFERROR(VLOOKUP($A129,FILTRO.12!A33:K362,3,FALSE),0) -> 0 | F129: =IFERROR(VLOOKUP($A129,FILTRO.12!A33:K362,4,FALSE),0) -> 21 | G129: =IFERROR(VLOOKUP($A129,FILTRO.12!A33:K362,5,FALSE),0) -> 0
A130: 80302029 | B130: 0302029 | C130: Deshidrogenasa hidroxibutírica (HBDH) | D130: 0 | E130: =IFERROR(VLOOKUP($A130,FILTRO.12!A34:K363,3,FALSE),0) -> 0 | F130: =IFERROR(VLOOKUP($A130,FILTRO.12!A34:K363,4,FALSE),0) -> 0 | G130: =IFERROR(VLOOKUP($A130,FILTRO.12!A34:K363,5,FALSE),0) -> 0
A131: 80302030 | B131: 0302030 | C131: Deshidrogenasa láctica total (LDH) | D131: 78 | E131: =IFERROR(VLOOKUP($A131,FILTRO.12!A35:K364,3,FALSE),0) -> 0 | F131: =IFERROR(VLOOKUP($A131,FILTRO.12!A35:K364,4,FALSE),0) -> 78 | G131: =IFERROR(VLOOKUP($A131,FILTRO.12!A35:K364,5,FALSE),0) -> 1,454
A132: 80302031 | B132: 0302031 | C132: Deshidrogenasa láctica total (LDH), con separación de isoenzimas | D132: 0 | E132: =IFERROR(VLOOKUP($A132,FILTRO.12!A36:K365,3,FALSE),0) -> 0 | F132: =IFERROR(VLOOKUP($A132,FILTRO.12!A36:K365,4,FALSE),0) -> 0 | G132: =IFERROR(VLOOKUP($A132,FILTRO.12!A36:K365,5,FALSE),0) -> 0
A133: 80302032 | B133: 0302032 | C133: Electrolitos plasmáticos (sodio, potasio, cloro) c/u | D133: 68,255 | E133: =IFERROR(VLOOKUP($A133,FILTRO.12!A37:K366,3,FALSE),0) -> 0 | F133: =IFERROR(VLOOKUP($A133,FILTRO.12!A37:K366,4,FALSE),0) -> 68,255 | G133: =IFERROR(VLOOKUP($A133,FILTRO.12!A37:K366,5,FALSE),0) -> 82,122
A134: 80302033 | B134: 0302033 | C134: Enzima convertidora de angiotensina I | D134: 0 | E134: =IFERROR(VLOOKUP($A134,FILTRO.12!A38:K367,3,FALSE),0) -> 0 | F134: =IFERROR(VLOOKUP($A134,FILTRO.12!A38:K367,4,FALSE),0) -> 0 | G134: =IFERROR(VLOOKUP($A134,FILTRO.12!A38:K367,5,FALSE),0) -> 12
A135: 80302034 | B135: 0302034 | C135: Perfil Lipídico (incluye: colesterol total, HDL, LDL, VLDL y triglicéridos) | D135: 49,828 | E135: =IFERROR(VLOOKUP($A135,FILTRO.12!A39:K368,3,FALSE),0) -> 0 | F135: =IFERROR(VLOOKUP($A135,FILTRO.12!A39:K368,4,FALSE),0) -> 49,828 | G135: =IFERROR(VLOOKUP($A135,FILTRO.12!A39:K368,5,FALSE),0) -> 68,680
A136: 80302035 | B136: 0302035 | C136: Fármacos y/o drogas; niveles plasmáticos de (alcohol, anorexígenos, antiarrítmicos, antibióticos, antidepresivos, antiepilépticos, antihistamínicos, antiinflamatorios y analgésicos, estimulantes respiratorios, tranquilizantes mayores y menores, etc.) c/u | D136: 2 | E136: =IFERROR(VLOOKUP($A136,FILTRO.12!A40:K369,3,FALSE),0) -> 0 | F136: =IFERROR(VLOOKUP($A136,FILTRO.12!A40:K369,4,FALSE),0) -> 2 | G136: =IFERROR(VLOOKUP($A136,FILTRO.12!A40:K369,5,FALSE),0) -> 167
A137: 80302036 | B137: 0302036 | C137: Fenilalanina | D137: 0 | E137: =IFERROR(VLOOKUP($A137,FILTRO.12!A41:K370,3,FALSE),0) -> 0 | F137: =IFERROR(VLOOKUP($A137,FILTRO.12!A41:K370,4,FALSE),0) -> 0 | G137: =IFERROR(VLOOKUP($A137,FILTRO.12!A41:K370,5,FALSE),0) -> 0
A138: 80302037 | B138: 0302037 | C138: Fosfatasas ácidas totales | D138: 0 | E138: =IFERROR(VLOOKUP($A138,FILTRO.12!A42:K371,3,FALSE),0) -> 0 | F138: =IFERROR(VLOOKUP($A138,FILTRO.12!A42:K371,4,FALSE),0) -> 0 | G138: =IFERROR(VLOOKUP($A138,FILTRO.12!A42:K371,5,FALSE),0) -> 0
A139: 80302038 | B139: 0302038 | C139: Fosfatasas ácidas totales y fracción prostática | D139: 0 | E139: =IFERROR(VLOOKUP($A139,FILTRO.12!A43:K372,3,FALSE),0) -> 0 | F139: =IFERROR(VLOOKUP($A139,FILTRO.12!A43:K372,4,FALSE),0) -> 0 | G139: =IFERROR(VLOOKUP($A139,FILTRO.12!A43:K372,5,FALSE),0) -> 92
A140: 80302039 | B140: 0302039 | C140: Fosfatasas alcalinas con separación de isoenzimas hepáticas, intestinales, óseas c/u | D140: 0 | E140: =IFERROR(VLOOKUP($A140,FILTRO.12!A44:K373,3,FALSE),0) -> 0 | F140: =IFERROR(VLOOKUP($A140,FILTRO.12!A44:K373,4,FALSE),0) -> 0 | G140: =IFERROR(VLOOKUP($A140,FILTRO.12!A44:K373,5,FALSE),0) -> 0
A141: 80302040 | B141: 0302040 | C141: Fosfatasas alcalinas totales | D141: 440 | E141: =IFERROR(VLOOKUP($A141,FILTRO.12!A45:K374,3,FALSE),0) -> 0 | F141: =IFERROR(VLOOKUP($A141,FILTRO.12!A45:K374,4,FALSE),0) -> 440 | G141: =IFERROR(VLOOKUP($A141,FILTRO.12!A45:K374,5,FALSE),0) -> 8,060
A142: 80302041 | B142: 0302041 | C142: Fosfolípidos | D142: 0 | E142: =IFERROR(VLOOKUP($A142,FILTRO.12!A46:K375,3,FALSE),0) -> 0 | F142: =IFERROR(VLOOKUP($A142,FILTRO.12!A46:K375,4,FALSE),0) -> 0 | G142: =IFERROR(VLOOKUP($A142,FILTRO.12!A46:K375,5,FALSE),0) -> 0
A143: 80302042 | B143: 0302042 | C143: Fósforo (fosfatos) en sangre | D143: 73 | E143: =IFERROR(VLOOKUP($A143,FILTRO.12!A47:K376,3,FALSE),0) -> 0 | F143: =IFERROR(VLOOKUP($A143,FILTRO.12!A47:K376,4,FALSE),0) -> 73 | G143: =IFERROR(VLOOKUP($A143,FILTRO.12!A47:K376,5,FALSE),0) -> 1,157
A144: 80302043 | B144: 0302043 | C144: Galactosa | D144: 0 | E144: =IFERROR(VLOOKUP($A144,FILTRO.12!A48:K377,3,FALSE),0) -> 0 | F144: =IFERROR(VLOOKUP($A144,FILTRO.12!A48:K377,4,FALSE),0) -> 0 | G144: =IFERROR(VLOOKUP($A144,FILTRO.12!A48:K377,5,FALSE),0) -> 0
A145: 80302044 | B145: 0302044 | C145: Galactosa, curva de tolerancia, (mínimo cuatro determinaciones) (no incluye la galactosa que se administra) (incluye los valores de todas las tomas de muestras necesarias) | D145: 0 | E145: =IFERROR(VLOOKUP($A145,FILTRO.12!A49:K378,3,FALSE),0) -> 0 | F145: =IFERROR(VLOOKUP($A145,FILTRO.12!A49:K378,4,FALSE),0) -> 0 | G145: =IFERROR(VLOOKUP($A145,FILTRO.12!A49:K378,5,FALSE),0) -> 50
A146: 80302045 | B146: 0302045 | C146: Gamma glutamiltranspeptidasa (GGT) | D146: 50 | E146: =IFERROR(VLOOKUP($A146,FILTRO.12!A50:K379,3,FALSE),0) -> 0 | F146: =IFERROR(VLOOKUP($A146,FILTRO.12!A50:K379,4,FALSE),0) -> 50 | G146: =IFERROR(VLOOKUP($A146,FILTRO.12!A50:K379,5,FALSE),0) -> 2,596
A147: 80302046 | B147: 0302046 | C147: Gases y equilibrio ácido base en sangre (incluye: pH, O2, CO2, exceso de base y bicarbonato), todos o cada uno de los parámetros | D147: 0 | E147: =IFERROR(VLOOKUP($A147,FILTRO.12!A51:K380,3,FALSE),0) -> 0 | F147: =IFERROR(VLOOKUP($A147,FILTRO.12!A51:K380,4,FALSE),0) -> 0 | G147: =IFERROR(VLOOKUP($A147,FILTRO.12!A51:K380,5,FALSE),0) -> 0
A148: 80302047 | B148: 0302047 | C148: Glucosa en sangre | D148: 60,280 | E148: =IFERROR(VLOOKUP($A148,FILTRO.12!A52:K381,3,FALSE),0) -> 447 | F148: =IFERROR(VLOOKUP($A148,FILTRO.12!A52:K381,4,FALSE),0) -> 59,833 | G148: =IFERROR(VLOOKUP($A148,FILTRO.12!A52:K381,5,FALSE),0) -> 127,506
A149: 80302048 | B149: 0302048 | C149: Glucosa, Prueba de Tolerancia a la Glucosa Oral (PTGO), (dos determinaciones) (no incluye la glucosa que se administra) (incluye el valor de las dos tomas de muestras) | D149: 4,385 | E149: =IFERROR(VLOOKUP($A149,FILTRO.12!A53:K382,3,FALSE),0) -> 0 | F149: =IFERROR(VLOOKUP($A149,FILTRO.12!A53:K382,4,FALSE),0) -> 4,385 | G149: =IFERROR(VLOOKUP($A149,FILTRO.12!A53:K382,5,FALSE),0) -> 11,573
A150: 80302050 | B150: 0302050 | C150: Adenosindeaminasa en sangre u otro fluído biológico. | D150: 0 | E150: =IFERROR(VLOOKUP($A150,FILTRO.12!A54:K383,3,FALSE),0) -> 0 | F150: =IFERROR(VLOOKUP($A150,FILTRO.12!A54:K383,4,FALSE),0) -> 0 | G150: =IFERROR(VLOOKUP($A150,FILTRO.12!A54:K383,5,FALSE),0) -> 103
A151: 80302051 | B151: 0302051 | C151: Lactosa, curva de tolerancia, (mínimo cuatro determinaciones) (no incluye la lactosa que se administra) (incluye los valores de todas las tomas de muestras necesarias) | D151: 0 | E151: =IFERROR(VLOOKUP($A151,FILTRO.12!A55:K384,3,FALSE),0) -> 0 | F151: =IFERROR(VLOOKUP($A151,FILTRO.12!A55:K384,4,FALSE),0) -> 0 | G151: =IFERROR(VLOOKUP($A151,FILTRO.12!A55:K384,5,FALSE),0) -> 38
A152: 80302052 | B152: 0302052 | C152: Leucinaminopeptidasa (LAP) | D152: 0 | E152: =IFERROR(VLOOKUP($A152,FILTRO.12!A56:K385,3,FALSE),0) -> 0 | F152: =IFERROR(VLOOKUP($A152,FILTRO.12!A56:K385,4,FALSE),0) -> 0 | G152: =IFERROR(VLOOKUP($A152,FILTRO.12!A56:K385,5,FALSE),0) -> 0
A153: 80302053 | B153: 0302053 | C153: Lipasa | D153: 0 | E153: =IFERROR(VLOOKUP($A153,FILTRO.12!A57:K386,3,FALSE),0) -> 0 | F153: =IFERROR(VLOOKUP($A153,FILTRO.12!A57:K386,4,FALSE),0) -> 0 | G153: =IFERROR(VLOOKUP($A153,FILTRO.12!A57:K386,5,FALSE),0) -> 7
A154: 80302069 | B154: 0302069 | C154: Lípidos totales (proc. aut.) | D154: 0 | E154: =IFERROR(VLOOKUP($A154,FILTRO.12!A58:K387,3,FALSE),0) -> 0 | F154: =IFERROR(VLOOKUP($A154,FILTRO.12!A58:K387,4,FALSE),0) -> 0 | G154: =IFERROR(VLOOKUP($A154,FILTRO.12!A58:K387,5,FALSE),0) -> 5,414
A155: 80302054 | B155: 0302054 | C155: Lipoproteínas, electroforesis de (incluye lípidos totales) | D155: 0 | E155: =IFERROR(VLOOKUP($A155,FILTRO.12!A59:K388,3,FALSE),0) -> 0 | F155: =IFERROR(VLOOKUP($A155,FILTRO.12!A59:K388,4,FALSE),0) -> 0 | G155: =IFERROR(VLOOKUP($A155,FILTRO.12!A59:K388,5,FALSE),0) -> 58
A156: 80302055 | B156: 0302055 | C156: Litio | D156: 0 | E156: =IFERROR(VLOOKUP($A156,FILTRO.12!A60:K389,3,FALSE),0) -> 0 | F156: =IFERROR(VLOOKUP($A156,FILTRO.12!A60:K389,4,FALSE),0) -> 0 | G156: =IFERROR(VLOOKUP($A156,FILTRO.12!A60:K389,5,FALSE),0) -> 0
A157: 80302056 | B157: 0302056 | C157: Magnesio | D157: 0 | E157: =IFERROR(VLOOKUP($A157,FILTRO.12!A61:K390,3,FALSE),0) -> 0 | F157: =IFERROR(VLOOKUP($A157,FILTRO.12!A61:K390,4,FALSE),0) -> 0 | G157: =IFERROR(VLOOKUP($A157,FILTRO.12!A61:K390,5,FALSE),0) -> 0
A158: 80302057 | B158: 0302057 | C158: Nitrógeno ureico y/o úrea en sangre | D158: 26,894 | E158: =IFERROR(VLOOKUP($A158,FILTRO.12!A62:K391,3,FALSE),0) -> 0 | F158: =IFERROR(VLOOKUP($A158,FILTRO.12!A62:K391,4,FALSE),0) -> 26,894 | G158: =IFERROR(VLOOKUP($A158,FILTRO.12!A62:K391,5,FALSE),0) -> 43,452
A159: 80302058 | B159: 0302058 | C159: Osmolalidad en sangre | D159: 1 | E159: =IFERROR(VLOOKUP($A159,FILTRO.12!A63:K392,3,FALSE),0) -> 0 | F159: =IFERROR(VLOOKUP($A159,FILTRO.12!A63:K392,4,FALSE),0) -> 1 | G159: =IFERROR(VLOOKUP($A159,FILTRO.12!A63:K392,5,FALSE),0) -> 1
A160: 80302075 | B160: 0302075 | C160: Perfil bioquímico (determinación automatizada de 12 parámetros) | D160: 65 | E160: =IFERROR(VLOOKUP($A160,FILTRO.12!A64:K393,3,FALSE),0) -> 0 | F160: =IFERROR(VLOOKUP($A160,FILTRO.12!A64:K393,4,FALSE),0) -> 65 | G160: =IFERROR(VLOOKUP($A160,FILTRO.12!A64:K393,5,FALSE),0) -> 1,701
A161: 80302059 | B161: 0302059 | C161: Proteínas fraccionadas albúmina/globulina (incluye código 03-02-060) | D161: 1,394 | E161: =IFERROR(VLOOKUP($A161,FILTRO.12!A65:K394,3,FALSE),0) -> 0 | F161: =IFERROR(VLOOKUP($A161,FILTRO.12!A65:K394,4,FALSE),0) -> 1,394 | G161: =IFERROR(VLOOKUP($A161,FILTRO.12!A65:K394,5,FALSE),0) -> 0
A162: 80302060 | B162: 0302060 | C162: Proteínas totales o albúminas, c/u en sangre | D162: 1,274 | E162: =IFERROR(VLOOKUP($A162,FILTRO.12!A66:K395,3,FALSE),0) -> 0 | F162: =IFERROR(VLOOKUP($A162,FILTRO.12!A66:K395,4,FALSE),0) -> 1,274 | G162: =IFERROR(VLOOKUP($A162,FILTRO.12!A66:K395,5,FALSE),0) -> 4,237
A163: 80302061 | B163: 0302061 | C163: Proteínas, electroforesis (incluye cód. 03-02-060) | D163: 0 | E163: =IFERROR(VLOOKUP($A163,FILTRO.12!A67:K396,3,FALSE),0) -> 0 | F163: =IFERROR(VLOOKUP($A163,FILTRO.12!A67:K396,4,FALSE),0) -> 0 | G163: =IFERROR(VLOOKUP($A163,FILTRO.12!A67:K396,5,FALSE),0) -> 0
A164: 80302062 | B164: 0302062 | C164: Salicilemia cuantitativa | D164: 0 | E164: =IFERROR(VLOOKUP($A164,FILTRO.12!A68:K397,3,FALSE),0) -> 0 | F164: =IFERROR(VLOOKUP($A164,FILTRO.12!A68:K397,4,FALSE),0) -> 0 | G164: =IFERROR(VLOOKUP($A164,FILTRO.12!A68:K397,5,FALSE),0) -> 0
A165: 80302076 | B165: 0302076 | C165: Perfil Hepático (incluye tiempo de protrombina, bilirrubina total y conjugada, fosfatasas alcalinas totales, GGT, transaminasas GOT/AST y GPT/ALT) | D165: 25,355 | E165: =IFERROR(VLOOKUP($A165,FILTRO.12!A69:K398,3,FALSE),0) -> 0 | F165: =IFERROR(VLOOKUP($A165,FILTRO.12!A69:K398,4,FALSE),0) -> 25,355 | G165: =IFERROR(VLOOKUP($A165,FILTRO.12!A69:K398,5,FALSE),0) -> 24,635
A166: 80302063 | B166: 0302063 | C166: Transaminasas, oxalacética (GOT/AST), Pirúvica (GPT/ALT), c/u | D166: =SUM(E166:F166) -> 749 | E166: =IFERROR(VLOOKUP($A166,FILTRO.12!A70:K399,3,FALSE),0) -> 0 | F166: =IFERROR(VLOOKUP($A166,FILTRO.12!A70:K399,4,FALSE),0) -> 749 | G166: =IFERROR(VLOOKUP($A166,FILTRO.12!A70:K399,5,FALSE),0) -> 20,518
A167: 80302064 | B167: 0302064 | C167: Triglicéridos (proc. aut.) | D167: 2,745 | E167: =IFERROR(VLOOKUP($A167,FILTRO.12!A71:K400,3,FALSE),0) -> 0 | F167: =IFERROR(VLOOKUP($A167,FILTRO.12!A71:K400,4,FALSE),0) -> 2,745 | G167: =IFERROR(VLOOKUP($A167,FILTRO.12!A71:K400,5,FALSE),0) -> 54,344
A168: 80302065 | B168: 0302065 | C168: Vitaminas A, B, C, D, E, etc., c/u | D168: 0 | E168: =IFERROR(VLOOKUP($A168,FILTRO.12!A72:K401,3,FALSE),0) -> 0 | F168: =IFERROR(VLOOKUP($A168,FILTRO.12!A72:K401,4,FALSE),0) -> 0 | G168: =IFERROR(VLOOKUP($A168,FILTRO.12!A72:K401,5,FALSE),0) -> 124
A169: 80302066 | B169: 0302066 | C169: Xilosa, prueba de absorción (no incluye la xilosa que se administra) | D169: 0 | E169: =IFERROR(VLOOKUP($A169,FILTRO.12!A73:K402,3,FALSE),0) -> 0 | F169: =IFERROR(VLOOKUP($A169,FILTRO.12!A73:K402,4,FALSE),0) -> 0 | G169: =IFERROR(VLOOKUP($A169,FILTRO.12!A73:K402,5,FALSE),0) -> 0
B170: TOTAL | D170: =SUM(D101:D169) -> 323,002 | E170: =SUM(E101:E169) -> 477 | F170: =SUM(F101:F169) -> 322,525 | G170: =SUM(G101:G169) -> 723,733
B172: EXÁMENES HORMONALES
A173: 80303015 | B173: 0303015 | C173: Hormona folículo estimulante (FSH) | D173: =SUM(E173:F173) -> 2 | E173: =IFERROR(VLOOKUP($A173,FILTRO.12!A5:K334,3,FALSE),0) -> 0 | F173: =IFERROR(VLOOKUP($A173,FILTRO.12!A5:K334,4,FALSE),0) -> 2 | G173: =IFERROR(VLOOKUP($A173,FILTRO.12!A5:K334,5,FALSE),0) -> 1,230
A174: 80303024 | B174: 0303024 | C174: Tiroestimulante (TSH), hormona (adulto, niño o R.N.) | D174: =SUM(E174:F174) -> 35,829 | E174: =IFERROR(VLOOKUP($A174,FILTRO.12!A6:K335,3,FALSE),0) -> 0 | F174: =IFERROR(VLOOKUP($A174,FILTRO.12!A6:K335,4,FALSE),0) -> 35,829 | G174: =IFERROR(VLOOKUP($A174,FILTRO.12!A6:K335,5,FALSE),0) -> 84,098
A175: 80303025 | B175: 0303025 | C175: Tiroglobulina | D175: 0 | E175: =IFERROR(VLOOKUP($A175,FILTRO.12!A7:K336,3,FALSE),0) -> 0 | F175: =IFERROR(VLOOKUP($A175,FILTRO.12!A7:K336,4,FALSE),0) -> 0 | G175: =IFERROR(VLOOKUP($A175,FILTRO.12!A7:K336,5,FALSE),0) -> 17
A176: 80303026 | B176: 0303026 | C176: Tiroxina libre (T4L) | D176: 26,930 | E176: =IFERROR(VLOOKUP($A176,FILTRO.12!A8:K337,3,FALSE),0) -> 0 | F176: =IFERROR(VLOOKUP($A176,FILTRO.12!A8:K337,4,FALSE),0) -> 26,930 | G176: =IFERROR(VLOOKUP($A176,FILTRO.12!A8:K337,5,FALSE),0) -> 29,718
A177: 80303027 | B177: 0303027 | C177: Tiroxina o tetrayodotironina (T4) | D177: 451 | E177: =IFERROR(VLOOKUP($A177,FILTRO.12!A9:K338,3,FALSE),0) -> 0 | F177: =IFERROR(VLOOKUP($A177,FILTRO.12!A9:K338,4,FALSE),0) -> 451 | G177: =IFERROR(VLOOKUP($A177,FILTRO.12!A9:K338,5,FALSE),0) -> 81
A178: 80303028 | B178: 0303028 | C178: Triyodotironina (T3) | D178: 360 | E178: =IFERROR(VLOOKUP($A178,FILTRO.12!A10:K339,3,FALSE),0) -> 0 | F178: =IFERROR(VLOOKUP($A178,FILTRO.12!A10:K339,4,FALSE),0) -> 360 | G178: =IFERROR(VLOOKUP($A178,FILTRO.12!A10:K339,5,FALSE),0) -> 37
B179: TOTAL | D179: =SUM(D173:D178) -> 63,572 | E179: =SUM(E173:E178) -> 0 | F179: =SUM(F173:F178) -> 63,572 | G179: =SUM(G173:G178) -> 115,181
B181: INMUNOLÓGICOS
A182: 80305001 | B182: 0305001 | C182: Alfa -1- antitripsina cuantitativa | D182: =SUM(E182:F182) -> 0 | E182: =IFERROR(VLOOKUP($A182,FILTRO.12!A5:K334,3,FALSE),0) -> 0 | F182: =IFERROR(VLOOKUP($A182,FILTRO.12!A5:K334,4,FALSE),0) -> 0 | G182: =IFERROR(VLOOKUP($A182,FILTRO.12!A5:K334,5,FALSE),0) -> 0
A183: 80305002 | B183: 0305002 | C183: Alfa -2- macroglobulina | D183: =SUM(E183:F183) -> 0 | E183: =IFERROR(VLOOKUP($A183,FILTRO.12!A6:K335,3,FALSE),0) -> 0 | F183: =IFERROR(VLOOKUP($A183,FILTRO.12!A6:K335,4,FALSE),0) -> 0 | G183: =IFERROR(VLOOKUP($A183,FILTRO.12!A6:K335,5,FALSE),0) -> 0
A184: 80305003 | B184: 0305003 | C184: Alfa fetoproteínas | D184: 0 | E184: =IFERROR(VLOOKUP($A184,FILTRO.12!A7:K336,3,FALSE),0) -> 0 | F184: =IFERROR(VLOOKUP($A184,FILTRO.12!A7:K336,4,FALSE),0) -> 0 | G184: =IFERROR(VLOOKUP($A184,FILTRO.12!A7:K336,5,FALSE),0) -> 1
A185: 80305004 | B185: 0305004 | C185: Tamizaje de Anticuerpos anti antígenos nucleares extractables (a- ENA: Sm, RNP, Ro, La, Scl- 70 y Jo- 1) | D185: 0 | E185: =IFERROR(VLOOKUP($A185,FILTRO.12!A8:K337,3,FALSE),0) -> 0 | F185: =IFERROR(VLOOKUP($A185,FILTRO.12!A8:K337,4,FALSE),0) -> 0 | G185: =IFERROR(VLOOKUP($A185,FILTRO.12!A8:K337,5,FALSE),0) -> 5
A186: 80305005 | B186: 0305005 | C186: Anticuerpos antinucleares (ANA), antimitocondriales, anti DNA (ADNA), anti músculo liso, anticentrómero, u otros, c/u. | D186: 0 | E186: =IFERROR(VLOOKUP($A186,FILTRO.12!A9:K338,3,FALSE),0) -> 0 | F186: =IFERROR(VLOOKUP($A186,FILTRO.12!A9:K338,4,FALSE),0) -> 0 | G186: =IFERROR(VLOOKUP($A186,FILTRO.12!A9:K338,5,FALSE),0) -> 2,046
A187: 80305006 | B187: 0305006 | C187: Anticuerpos atípicos, pannel de identificación | D187: 0 | E187: =IFERROR(VLOOKUP($A187,FILTRO.12!A10:K339,3,FALSE),0) -> 0 | F187: =IFERROR(VLOOKUP($A187,FILTRO.12!A10:K339,4,FALSE),0) -> 0 | G187: =IFERROR(VLOOKUP($A187,FILTRO.12!A10:K339,5,FALSE),0) -> 0
A188: 80305007 | B188: 0305007 | C188: Anticuerpos específicos y otros autoanticuerpos (anticuerpos antitiroídeos: anticuerpos antimicrosomales y antitiroglobulinas y otros anticuerpos: prostático, espermios, etc.) c/u | D188: 0 | E188: =IFERROR(VLOOKUP($A188,FILTRO.12!A11:K340,3,FALSE),0) -> 0 | F188: =IFERROR(VLOOKUP($A188,FILTRO.12!A11:K340,4,FALSE),0) -> 0 | G188: =IFERROR(VLOOKUP($A188,FILTRO.12!A11:K340,5,FALSE),0) -> 2
A189: 80305008 | B189: 0305008 | C189: Antiestreptolisina O, por técnica de látex | D189: 0 | E189: =IFERROR(VLOOKUP($A189,FILTRO.12!A12:K341,3,FALSE),0) -> 0 | F189: =IFERROR(VLOOKUP($A189,FILTRO.12!A12:K341,4,FALSE),0) -> 0 | G189: =IFERROR(VLOOKUP($A189,FILTRO.12!A12:K341,5,FALSE),0) -> 0
A190: 80305009 | B190: 0305009 | C190: Antígeno carcinoembrionario (CEA) | D190: 0 | E190: =IFERROR(VLOOKUP($A190,FILTRO.12!A13:K342,3,FALSE),0) -> 0 | F190: =IFERROR(VLOOKUP($A190,FILTRO.12!A13:K342,4,FALSE),0) -> 0 | G190: =IFERROR(VLOOKUP($A190,FILTRO.12!A13:K342,5,FALSE),0) -> 2
A191: 80305070 | B191: 0305070 | C191: Antígeno prostático específico | D191: 1,892 | E191: =IFERROR(VLOOKUP($A191,FILTRO.12!A14:K343,3,FALSE),0) -> 0 | F191: =IFERROR(VLOOKUP($A191,FILTRO.12!A14:K343,4,FALSE),0) -> 1,892 | G191: =IFERROR(VLOOKUP($A191,FILTRO.12!A14:K343,5,FALSE),0) -> 8,103
A192: 80305170 | B192: 0305170 | C192: Antígeno Ca 125, Ca 15-3 y Ca 19-9, c/u | D192: 0 | E192: =IFERROR(VLOOKUP($A192,FILTRO.12!A15:K344,3,FALSE),0) -> 0 | F192: =IFERROR(VLOOKUP($A192,FILTRO.12!A15:K344,4,FALSE),0) -> 0 | G192: =IFERROR(VLOOKUP($A192,FILTRO.12!A15:K344,5,FALSE),0) -> 12
A193: 80305010 | B193: 0305010 | C193: Beta-2-microglobulina | D193: 0 | E193: =IFERROR(VLOOKUP($A193,FILTRO.12!A16:K345,3,FALSE),0) -> 0 | F193: =IFERROR(VLOOKUP($A193,FILTRO.12!A16:K345,4,FALSE),0) -> 0 | G193: =IFERROR(VLOOKUP($A193,FILTRO.12!A16:K345,5,FALSE),0) -> 0
A194: 80305011 | B194: 0305011 | C194: Complejos inmunes circulantes | D194: 0 | E194: =IFERROR(VLOOKUP($A194,FILTRO.12!A17:K346,3,FALSE),0) -> 0 | F194: =IFERROR(VLOOKUP($A194,FILTRO.12!A17:K346,4,FALSE),0) -> 0 | G194: =IFERROR(VLOOKUP($A194,FILTRO.12!A17:K346,5,FALSE),0) -> 0
A195: 80305012 | B195: 0305012 | C195: Complemento C1Q, C2, C3, C4, etc., c/u | D195: 0 | E195: =IFERROR(VLOOKUP($A195,FILTRO.12!A18:K347,3,FALSE),0) -> 0 | F195: =IFERROR(VLOOKUP($A195,FILTRO.12!A18:K347,4,FALSE),0) -> 0 | G195: =IFERROR(VLOOKUP($A195,FILTRO.12!A18:K347,5,FALSE),0) -> 14
A196: 80305013 | B196: 0305013 | C196: Complemento hemolítico (CH 50) | D196: 0 | E196: =IFERROR(VLOOKUP($A196,FILTRO.12!A19:K348,3,FALSE),0) -> 0 | F196: =IFERROR(VLOOKUP($A196,FILTRO.12!A19:K348,4,FALSE),0) -> 0 | G196: =IFERROR(VLOOKUP($A196,FILTRO.12!A19:K348,5,FALSE),0) -> 0
A197: 80305014 | B197: 0305014 | C197: Crioglobulinas, precipitación en frío (cualitativa) o cuantitativa c/u | D197: 0 | E197: =IFERROR(VLOOKUP($A197,FILTRO.12!A20:K349,3,FALSE),0) -> 0 | F197: =IFERROR(VLOOKUP($A197,FILTRO.12!A20:K349,4,FALSE),0) -> 0 | G197: =IFERROR(VLOOKUP($A197,FILTRO.12!A20:K349,5,FALSE),0) -> 0
A198: 80305015 | B198: 0305015 | C198: Depósito de complejos inmunes por inmunofluorescencia | D198: 0 | E198: =IFERROR(VLOOKUP($A198,FILTRO.12!A21:K350,3,FALSE),0) -> 0 | F198: =IFERROR(VLOOKUP($A198,FILTRO.12!A21:K350,4,FALSE),0) -> 0 | G198: =IFERROR(VLOOKUP($A198,FILTRO.12!A21:K350,5,FALSE),0) -> 0
A199: 80305016 | B199: 0305016 | C199: Depósito de complemento por inmunofluorescencia (C3, C4), c/u | D199: 0 | E199: =IFERROR(VLOOKUP($A199,FILTRO.12!A22:K351,3,FALSE),0) -> 0 | F199: =IFERROR(VLOOKUP($A199,FILTRO.12!A22:K351,4,FALSE),0) -> 0 | G199: =IFERROR(VLOOKUP($A199,FILTRO.12!A22:K351,5,FALSE),0) -> 0
A200: 80305017 | B200: 0305017 | C200: Depósito de fibrinógeno por inmunofluorescencia | D200: 0 | E200: =IFERROR(VLOOKUP($A200,FILTRO.12!A23:K352,3,FALSE),0) -> 0 | F200: =IFERROR(VLOOKUP($A200,FILTRO.12!A23:K352,4,FALSE),0) -> 0 | G200: =IFERROR(VLOOKUP($A200,FILTRO.12!A23:K352,5,FALSE),0) -> 0
A201: 80305018 | B201: 0305018 | C201: Depósito de inmunoglobulina por inmunofluorescencia (IgG, IgA, IgM) c/u | D201: 0 | E201: =IFERROR(VLOOKUP($A201,FILTRO.12!A24:K353,3,FALSE),0) -> 0 | F201: =IFERROR(VLOOKUP($A201,FILTRO.12!A24:K353,4,FALSE),0) -> 0 | G201: =IFERROR(VLOOKUP($A201,FILTRO.12!A24:K353,5,FALSE),0) -> 1
A202: 80305019 | B202: 0305019 | C202: Factor reumatoídeo por técnica de látex u otras similares | D202: 1,564 | E202: =IFERROR(VLOOKUP($A202,FILTRO.12!A25:K354,3,FALSE),0) -> 0 | F202: =IFERROR(VLOOKUP($A202,FILTRO.12!A25:K354,4,FALSE),0) -> 1,564 | G202: =IFERROR(VLOOKUP($A202,FILTRO.12!A25:K354,5,FALSE),0) -> 3,359
A203: 80305020 | B203: 0305020 | C203: Factor reumatoídeo por técnica Scat, Waaler Rose, nefelométricas y/o turbidimétricas | D203: 9 | E203: =IFERROR(VLOOKUP($A203,FILTRO.12!A26:K355,3,FALSE),0) -> 0 | F203: =IFERROR(VLOOKUP($A203,FILTRO.12!A26:K355,4,FALSE),0) -> 9 | G203: =IFERROR(VLOOKUP($A203,FILTRO.12!A26:K355,5,FALSE),0) -> 418
A204: 80305021 | B204: 0305021 | C204: Inhibidor de C1Q, C2 y C3, c/u | D204: 0 | E204: =IFERROR(VLOOKUP($A204,FILTRO.12!A27:K356,3,FALSE),0) -> 0 | F204: =IFERROR(VLOOKUP($A204,FILTRO.12!A27:K356,4,FALSE),0) -> 0 | G204: =IFERROR(VLOOKUP($A204,FILTRO.12!A27:K356,5,FALSE),0) -> 0
A205: 80305025 | B205: 0305025 | C205: Inmunofijación de inmunoglobulina, c/u | D205: 0 | E205: =IFERROR(VLOOKUP($A205,FILTRO.12!A28:K357,3,FALSE),0) -> 0 | F205: =IFERROR(VLOOKUP($A205,FILTRO.12!A28:K357,4,FALSE),0) -> 0 | G205: =IFERROR(VLOOKUP($A205,FILTRO.12!A28:K357,5,FALSE),0) -> 0
A206: 80305026 | B206: 0305026 | C206: Inmunoglobulina IgA secretora | D206: 0 | E206: =IFERROR(VLOOKUP($A206,FILTRO.12!A29:K358,3,FALSE),0) -> 0 | F206: =IFERROR(VLOOKUP($A206,FILTRO.12!A29:K358,4,FALSE),0) -> 0 | G206: =IFERROR(VLOOKUP($A206,FILTRO.12!A29:K358,5,FALSE),0) -> 0
... 406 more rows

Sheet FILTRO.12
A1: Mes | B1: (Todas)
A2: establecimiento | B2: (Todas)
A3: comuna | B3: (Todas)
A5: Etiquetas de fila | B5: Suma de Col01 | C5: Suma de Col02 | D5: Suma de Col03 | E5: Suma de Col04 | F5: Suma de Col06 | G5: Suma de Col05 | H5: Suma de Col07 | I5: Suma de Col08 | J5: Suma de Col09 | K5: Suma de Col10
A6: 18010100 | B6: 93537 | C6: 0 | D6: 93537
A7: 18010200 | B7: 323002 | C7: 477 | D7: 322525
A8: 18010500 | B8: 3469 | C8: 0 | D8: 3469
A9: 18010601 | B9: 22828 | C9: 27 | D9: 22801
A10: 18010800 | B10: 3548 | C10: 0 | D10: 3548
A11: 18010900 | B11: 110846 | C11: 2625 | D11: 108221
A12: 18011001 | B12: 56568 | C12: 49256 | D12: 7312
A13: 18011002 | B13: 2867 | C13: 0 | D13: 2867
A14: 18020200 | B14: 188 | C14: 160 | D14: 28
A15: 18020300 | B15: 22323 | C15: 15893 | D15: 6437
A16: 18020400 | B16: 984 | C16: 2 | D16: 982
A17: 18020500 | B17: 149172 | C17: 32653 | D17: 116510
A18: 18020600 | B18: 160 | C18: 142 | D18: 18
A19: 18020700 | B19: 1458 | C19: 1091 | D19: 367
A20: 18020800 | B20: 974 | C20: 960 | D20: 14
A21: 18020900 | B21: 999 | C21: 0 | D21: 999
A22: 18030000 | B22: 5605 | C22: 4077 | D22: 1528
A23: 18040100 | B23: 4061 | C23: 434 | D23: 3627
A24: 18040200 | B24: 1520 | C24: 69 | D24: 1451
A25: 18050100 | B25: 96939 | C25: 16643 | D25: 80253
A26: 18050200 | B26: 1954 | C26: 208 | D26: 1746
A27: 18050300 | B27: 691 | C27: 327 | D27: 364
A28: 18050400 | B28: 14515 | C28: 310 | D28: 14781
A29: 18050500 | B29: 62613 | C29: 2601 | D29: 60018
A30: 18070100 | B30: 331 | C30: 39 | D30: 231 | E30: 40 | F30: 8 | G30: 4 | H30: 9
A31: 18070300 | B31: 852 | C31: 296 | D31: 355 | E31: 27 | F31: 70 | G31: 22 | H31: 82
A32: 18090000 | B32: 33981 | C32: 603 | D32: 33130
A33: 18090100 | B33: 63572 | C33: 0 | D33: 63572
A34: 18090200 | B34: 7837 | C34: 1666
A35: 18400400 | B35: 206 | C35: 169 | D35: 37
A36: 18400500 | B36: 1049 | C36: 0 | D36: 1049
A37: 18400700 | B37: 1139477
A38: 18400900 | B38: 5374 | C38: 952 | D38: 4422
A39: 18700100 | B39: 118 | C39: 22 | D39: 86 | E39: 10 | G39: 2
A40: 18700240 | B40: 18 | D40: 18
A41: 18700250 | B41: 812 | D41: 812
A42: 18700260 | B42: 9 | D42: 9
A43: 18700270 | B43: 1003 | D43: 1003
A44: 18700280 | B44: 8 | D44: 8
A45: 18700290 | B45: 606 | D45: 606
A46: 18700300 | B46: 32 | D46: 32
A47: 18700310 | B47: 500 | D47: 500
A48: 18700330 | B48: 261 | D48: 261
A49: 18700340 | B49: 8 | D49: 8
A50: 18700350 | B50: 489 | D50: 489
A51: 80106002 | B51: 97022 | C51: 16675 | D51: 80347 | E51: 515 | F51: 387 | G51: 89647
A52: 80106005 | B52: 1953 | C52: 208 | D52: 1745 | E52: 134 | F52: 0 | G52: 1701
A53: 80106006 | B53: 771 | C53: 327 | D53: 444 | E53: 17 | F53: 0 | G53: 596
A54: 80106007 | B54: 822 | C54: 400 | D54: 422 | E54: 89 | F54: 0 | G54: 632
A55: 80106008 | B55: 612 | C55: 218 | D55: 394 | E55: 52 | F55: 0 | G55: 369
A56: 80106009 | B56: 49 | C56: 34 | D56: 15 | E56: 9 | F56: 0 | G56: 44
A57: 80106010 | B57: 903 | C57: 86 | D57: 817 | E57: 293 | F57: 0 | G57: 476
A58: 80106011 | B58: 30 | C58: 17 | D58: 13 | E58: 1 | F58: 0 | G58: 22
A59: 80106012 | B59: 70 | C59: 45 | D59: 25 | E59: 18 | F59: 0 | G59: 49
A60: 80106013 | B60: 2967 | C60: 1662 | D60: 1305 | E60: 126 | F60: 0 | G60: 2649
A61: 80106014 | B61: 415084 | C61: 253947 | D61: 161137 | E61: 3831 | F61: 1137 | G61: 389752
A62: 80106015 | B62: 67422 | C62: 57059 | D62: 10363 | E62: 296 | F62: 169 | G62: 63761
A63: 80106017 | B63: 62671 | C63: 2608 | D63: 60060 | E63: 914 | F63: 5 | G63: 60132
A64: 80106020 | B64: 5479 | C64: 4547 | D64: 932 | E64: 559 | F64: 1 | G64: 5217
A65: 80106021 | B65: 400 | C65: 112 | D65: 288 | E65: 11 | F65: 0 | G65: 234
A66: 80106022 | B66: 3270 | C66: 1472 | D66: 1799 | E66: 61 | F66: 0 | G66: 2960
A67: 80106023 | B67: 33942 | C67: 603 | D67: 33233 | E67: 149 | F67: 1703 | G67: 31485
A68: 80106024 | B68: 14419 | C68: 308 | D68: 14104 | E68: 4 | F68: 0 | G68: 13950
A69: 80301002 | B69: 0 | E69: 4
A70: 80301011 | B70: 7 | D70: 7 | E70: 539
A71: 80301014 | B71: 5 | C71: 0 | D71: 5 | E71: 83
A72: 80301015 | B72: 31 | D72: 31 | E72: 1639
A73: 80301017 | B73: 0 | E73: 4
A74: 80301026 | B74: 0 | E74: 3
A75: 80301030 | B75: 0 | E75: 3
A76: 80301033 | B76: 0 | E76: 5
A77: 80301034 | B77: 1236 | C77: 0 | D77: 1236 | E77: 2619
A78: 80301035 | B78: 0 | E78: 489
A79: 80301036 | B79: 3755 | C79: 0 | D79: 3755 | E79: 37440
A80: 80301038 | B80: 1719 | C80: 0 | D80: 1719 | E80: 33010
A81: 80301040 | B81: 6 | D81: 6 | E81: 6
A82: 80301041 | B82: 30268 | C82: 0 | D82: 30268 | E82: 58722
A83: 80301042 | B83: 0 | E83: 1
A84: 80301045 | B84: 51290 | C84: 0 | D84: 51290 | E84: 73405
A85: 80301046 | B85: 0 | E85: 3707
A86: 80301059 | B86: 3350 | C86: 0 | D86: 3350 | E86: 3183
A87: 80301065 | B87: 24 | D87: 24 | E87: 36
A88: 80301067 | B88: 159 | D88: 159 | E88: 67
A89: 80301069 | B89: 0 | E89: 1
A90: 80301075 | B90: 32 | D90: 32 | E90: 363
A91: 80301078 | B91: 0 | E91: 4
A92: 80301083 | B92: 3 | D92: 3 | E92: 140
A93: 80301085 | B93: 1010 | D93: 1010 | E93: 1799
A94: 80301086 | B94: 175 | C94: 0 | D94: 175 | E94: 1440
A95: 80301087 | B95: 467 | C95: 0 | D95: 467 | E95: 4060
A96: 80301088 | B96: 0 | E96: 2
A97: 80301091 | B97: 0 | E97: 1
A98: 80302004 | B98: 0 | E98: 4
A99: 80302005 | B99: 28331 | C99: 0 | D99: 28331 | E99: 38916
A100: 80302006 | B100: 30 | C100: 30 | E100: 119
A101: 80302008 | B101: 0 | E101: 17
A102: 80302012 | B102: 203 | C102: 0 | D102: 203 | E102: 811
A103: 80302013 | B103: 457 | C103: 0 | D103: 457 | E103: 8207
A104: 80302015 | B104: 140 | D104: 140 | E104: 1935
A105: 80302020 | B105: 0 | C105: 0 | D105: 0 | E105: 32
A106: 80302021 | B106: 0 | E106: 68
A107: 80302022 | B107: 0 | E107: 5225
A108: 80302023 | B108: 45733 | C108: 0 | D108: 45733 | E108: 97295
A109: 80302024 | B109: 92 | D109: 92 | E109: 316
A110: 80302025 | B110: 0 | E110: 10
A111: 80302026 | B111: 6 | D111: 6 | E111: 311
A112: 80302028 | B112: 21 | D112: 21
A113: 80302030 | B113: 78 | C113: 0 | D113: 78 | E113: 1454
A114: 80302032 | B114: 68255 | C114: 0 | D114: 68255 | E114: 82122
A115: 80302033 | B115: 0 | E115: 12
A116: 80302034 | B116: 49828 | C116: 0 | D116: 49828 | E116: 68680
A117: 80302035 | B117: 2 | C117: 0 | D117: 2 | E117: 167
A118: 80302038 | B118: 0 | E118: 92
A119: 80302040 | B119: 440 | C119: 0 | D119: 440 | E119: 8060
A120: 80302042 | B120: 73 | D120: 73 | E120: 1157
A121: 80302044 | B121: 0 | E121: 50
A122: 80302045 | B122: 50 | D122: 50 | E122: 2596
A123: 80302047 | B123: 60280 | C123: 447 | D123: 59833 | E123: 127506
A124: 80302048 | B124: 4385 | C124: 0 | D124: 4385 | E124: 11573
A125: 80302050 | B125: 0 | E125: 103
A126: 80302051 | B126: 0 | E126: 38
A127: 80302053 | B127: 0 | E127: 7
A128: 80302054 | B128: 0 | E128: 58
A129: 80302057 | B129: 26894 | C129: 0 | D129: 26894 | E129: 43452
A130: 80302058 | B130: 1 | D130: 1 | E130: 1
A131: 80302059 | B131: 1394 | D131: 1394
A132: 80302060 | B132: 1274 | C132: 0 | D132: 1274 | E132: 4237
A133: 80302063 | B133: 749 | C133: 0 | D133: 749 | E133: 20518
A134: 80302064 | B134: 2745 | C134: 0 | D134: 2745 | E134: 54344
A135: 80302065 | B135: 0 | E135: 124
A136: 80302067 | B136: 4612 | C136: 0 | D136: 4612 | E136: 61386
A137: 80302068 | B137: 1509 | C137: 0 | D137: 1509 | E137: 50980
A138: 80302069 | B138: 0 | E138: 5414
A139: 80302075 | B139: 65 | C139: 0 | D139: 65 | E139: 1701
A140: 80302076 | B140: 25355 | C140: 0 | D140: 25355 | E140: 24635
A141: 80303015 | B141: 2 | D141: 2 | E141: 1230
A142: 80303024 | B142: 35829 | C142: 0 | D142: 35829 | E142: 84098
A143: 80303025 | B143: 0 | E143: 17
A144: 80303026 | B144: 26930 | C144: 0 | D144: 26930 | E144: 29718
A145: 80303027 | B145: 451 | D145: 451 | E145: 81
A146: 80303028 | B146: 360 | D146: 360 | E146: 37
A147: 80305003 | B147: 0 | E147: 1
A148: 80305004 | B148: 0 | E148: 5
A149: 80305005 | B149: 0 | E149: 2046
A150: 80305007 | B150: 0 | E150: 2
A151: 80305009 | B151: 0 | E151: 2
A152: 80305012 | B152: 0 | E152: 14
A153: 80305018 | B153: 0 | E153: 1
A154: 80305019 | B154: 1564 | D154: 1564 | E154: 3359
A155: 80305020 | B155: 9 | D155: 9 | E155: 418
A156: 80305027 | B156: 0 | E156: 12
A157: 80305028 | B157: 0 | E157: 2
A158: 80305029 | B158: 0 | E158: 4
A159: 80305030 | B159: 4 | D159: 4 | E159: 196
A160: 80305031 | B160: 0 | E160: 1
A161: 80305060 | B161: 0 | E161: 1
A162: 80305070 | B162: 1892 | D162: 1892 | E162: 8103
A163: 80305170 | B163: 0 | E163: 12
A164: 80306001 | B164: 27 | C164: 2 | D164: 25 | E164: 230
A165: 80306002 | B165: 128 | C165: 25 | D165: 103 | E165: 867
A166: 80306004 | B166: 478 | D166: 478 | E166: 8
A167: 80306005 | B167: 288 | D167: 288 | E167: 8
A168: 80306007 | B168: 230 | D168: 230 | E168: 472
A169: 80306008 | B169: 273 | D169: 273 | E169: 77
A170: 80306011 | B170: 10024 | C170: 0 | D170: 10024 | E170: 20508
A171: 80306016 | B171: 0 | E171: 5
A172: 80306018 | B172: 7 | D172: 7 | E172: 67
A173: 80306022 | B173: 0 | E173: 1
A174: 80306023 | B174: 0 | E174: 54
A175: 80306026 | B175: 1763 | D175: 1763 | E175: 10
A176: 80306037 | B176: 0 | E176: 28
A177: 80306038 | B177: 6469 | C177: 0 | D177: 6469 | E177: 11208
A178: 80306041 | B178: 0 | E178: 4
A179: 80306042 | B179: 298 | D179: 298 | E179: 10204
A180: 80306045 | B180: 0 | E180: 100
A181: 80306047 | B181: 0 | E181: 25
A182: 80306048 | B182: 311 | C182: 0 | D182: 311 | E182: 1086
A183: 80306049 | B183: 0 | E183: 20
A184: 80306050 | B184: 0 | E184: 63
A185: 80306051 | B185: 164 | C185: 0 | D185: 164 | E185: 345
A186: 80306052 | B186: 2 | D186: 2 | E186: 49
A187: 80306059 | B187: 245 | D187: 245 | E187: 68
A188: 80306061 | B188: 1952 | C188: 0 | D188: 1952 | E188: 4539
A189: 80306062 | B189: 0 | E189: 1
A190: 80306063 | B190: 0 | E190: 1
A191: 80306064 | B191: 0 | E191: 33
A192: 80306066 | B192: 4 | D192: 4 | E192: 117
A193: 80306067 | B193: 0 | E193: 84
A194: 80306069 | B194: 0 | E194: 25
A195: 80306073 | B195: 0 | E195: 65
A196: 80306075 | B196: 0 | E196: 387
A197: 80306076 | B197: 0 | E197: 18
A198: 80306077 | B198: 2 | D198: 2 | E198: 54
A199: 80306078 | B199: 32 | D199: 32 | E199: 1192
A200: 80306079 | B200: 20 | C200: 0 | D200: 20 | E200: 978
A201: 80306080 | B201: 11 | D201: 11 | E201: 74
... 133 more rows

Sheet Filtro_ (hidden)
A1: Mes | B1: (Todas)
A2: Comuna | B2: (Todas)
A3: Establecimiento | B3: (Todas)
A5: Etiquetas de fila | B5: Suma de Col01 | C5: Suma de Col02 | D5: Suma de Col03 | E5: Suma de Col04 | F5: Suma de Col05 | G5: Suma de Col06 | H5: Suma de Col07
A6: 18010100 | B6: 70428 | C6: 0 | D6: 70428
A7: 18010200 | B7: 237224 | C7: 466 | D7: 236758
A8: 18010500 | B8: 2444 | C8: 0 | D8: 2444
A9: 18010601 | B9: 16728 | C9: 25 | D9: 16703
A10: 18010800 | B10: 2612 | C10: 0 | D10: 2612
A11: 18010900 | B11: 79611 | C11: 1375 | D11: 78236
A12: 18011001 | B12: 40680 | C12: 36007 | D12: 4673
A13: 18011002 | B13: 1642 | C13: 0 | D13: 1642
A14: 18020200 | B14: 138 | C14: 115 | D14: 23
A15: 18020300 | B15: 16420 | C15: 11656 | D15: 4771
A16: 18020400 | B16: 831 | C16: 2 | D16: 829
A17: 18020500 | B17: 112299 | C17: 22812 | D17: 89478
A18: 18020600 | B18: 120 | C18: 109 | D18: 11
A19: 18020700 | B19: 1127 | C19: 823 | D19: 304
A20: 18020800 | B20: 668 | C20: 654 | D20: 14
A21: 18020900 | B21: 831 | C21: 0 | D21: 831
A22: 18030000 | B22: 4126 | C22: 3003 | D22: 1123
A23: 18040100 | B23: 2989 | C23: 283 | D23: 2706
A24: 18040200 | B24: 1115 | C24: 53 | D24: 1062
A25: 18050100 | B25: 73834 | C25: 12283 | D25: 61513
A26: 18050200 | B26: 1767 | C26: 208 | D26: 1559
A27: 18050300 | B27: 540 | C27: 304 | D27: 236
A28: 18050400 | B28: 10997 | C28: 190 | D28: 10827
A29: 18050500 | B29: 46234 | C29: 1923 | D29: 44311
A30: 18070100 | B30: 331 | C30: 39 | D30: 231 | E30: 40 | F30: 4 | G30: 8 | H30: 9
A31: 18070300 | B31: 625 | C31: 219 | D31: 278 | E31: 18 | F31: 14 | G31: 50 | H31: 46
A32: 18090000 | B32: 27158 | C32: 603 | D32: 26412
A33: 18090100 | B33: 46593 | C33: 0 | D33: 46593
A34: 18090200 | B34: 5965 | C34: 1260
A35: 18400400 | B35: 169 | C35: 136 | D35: 33
A36: 18400500 | B36: 622 | C36: 0 | D36: 622
A37: 18400700 | B37: 817457
A38: 18400900 | B38: 4421 | C38: 801 | D38: 3620
A39: 18700100 | B39: 115 | C39: 22 | D39: 84 | E39: 9 | F39: 0
A40: 18700240 | B40: 18 | D40: 18
A41: 18700250 | B41: 606 | D41: 606
A42: 18700260 | B42: 9 | D42: 9
A43: 18700270 | B43: 785 | D43: 785
A44: 18700280 | B44: 8 | D44: 8
A45: 18700290 | B45: 524 | D45: 524
A46: 18700300 | B46: 32 | D46: 32
A47: 18700310 | B47: 331 | D47: 331
A48: 18700330 | B48: 184 | D48: 184
A49: 18700340 | B49: 8 | D49: 8
A50: 18700350 | B50: 316 | D50: 316
A51: 80106002 | B51: 73927 | C51: 12296 | D51: 61631 | E51: 363 | F51: 68447 | G51: 192
A52: 80106005 | B52: 1766 | C52: 208 | D52: 1558 | E52: 120 | F52: 1529 | G52: 0
A53: 80106006 | B53: 540 | C53: 304 | D53: 236 | E53: 17 | F53: 463 | G53: 0
A54: 80106007 | B54: 591 | C54: 288 | D54: 303 | E54: 58 | F54: 485 | G54: 0
A55: 80106008 | B55: 472 | C55: 177 | D55: 295 | E55: 44 | F55: 301 | G55: 0
A56: 80106009 | B56: 24 | C56: 22 | D56: 2 | E56: 1 | F56: 22 | G56: 0
A57: 80106010 | B57: 689 | C57: 64 | D57: 625 | E57: 236 | F57: 375
A58: 80106011 | B58: 27 | C58: 14 | D58: 13 | E58: 1 | F58: 20
A59: 80106012 | B59: 45 | C59: 40 | D59: 5 | E59: 16 | F59: 29 | G59: 0
A60: 80106013 | B60: 1954 | C60: 1215 | D60: 739 | E60: 88 | F60: 1793 | G60: 0
A61: 80106014 | B61: 307417 | C61: 183071 | D61: 124346 | E61: 2423 | F61: 286816 | G61: 380
A62: 80106015 | B62: 48037 | C62: 40647 | D62: 7390 | E62: 207 | F62: 45228 | G62: 0
A63: 80106017 | B63: 46247 | C63: 1928 | D63: 44320 | E63: 788 | F63: 44474 | G63: 0
A64: 80106020 | B64: 3896 | C64: 3135 | D64: 761 | E64: 26 | F64: 3690 | G64: 0
A65: 80106021 | B65: 190 | C65: 95 | D65: 95 | E65: 1 | F65: 175 | G65: 0
A66: 80106022 | B66: 2393 | C66: 1078 | D66: 1315 | E66: 36 | F66: 2195 | G66: 0
A67: 80106023 | B67: 27124 | C67: 603 | D67: 26521 | E67: 149 | F67: 25408 | G67: 1251
A68: 80106024 | B68: 10926 | C68: 190 | D68: 10729 | E68: 4 | F68: 10536 | G68: 0
A69: 80301002 | B69: 0 | E69: 2
A70: 80301011 | B70: 7 | D70: 7 | E70: 358
A71: 80301014 | B71: 5 | C71: 0 | D71: 5 | E71: 65
A72: 80301015 | B72: 22 | D72: 22 | E72: 1243
A73: 80301017 | B73: 0 | E73: 4
A74: 80301026 | B74: 0 | E74: 3
A75: 80301030 | B75: 0 | E75: 3
A76: 80301034 | B76: 882 | C76: 0 | D76: 882 | E76: 2008
A77: 80301035 | B77: 0 | E77: 478
A78: 80301036 | B78: 2848 | C78: 0 | D78: 2848 | E78: 30035
A79: 80301038 | B79: 1526 | C79: 0 | D79: 1526 | E79: 26328
A80: 80301040 | B80: 6 | D80: 6 | E80: 6
A81: 80301041 | B81: 22295 | C81: 0 | D81: 22295 | E81: 45019
A82: 80301042 | B82: 0 | E82: 1
A83: 80301045 | B83: 39157 | C83: 0 | D83: 39157 | E83: 56655
A84: 80301046 | B84: 0 | E84: 2696
A85: 80301059 | B85: 2449 | C85: 0 | D85: 2449 | E85: 2444
A86: 80301065 | B86: 22 | D86: 22 | E86: 24
A87: 80301067 | B87: 118 | D87: 118 | E87: 50
A88: 80301069 | B88: 0 | E88: 1
A89: 80301075 | B89: 32 | D89: 32 | E89: 294
A90: 80301083 | B90: 0 | E90: 124
A91: 80301085 | B91: 680 | D91: 680 | E91: 1304
A92: 80301086 | B92: 127 | C92: 0 | D92: 127 | E92: 1179
A93: 80301087 | B93: 252 | C93: 0 | D93: 252 | E93: 2760
A94: 80301088 | B94: 0 | E94: 2
A95: 80302004 | B95: 0 | E95: 4
A96: 80302005 | B96: 20869 | C96: 0 | D96: 20869 | E96: 30070
A97: 80302006 | B97: 19 | C97: 19 | E97: 119
A98: 80302008 | B98: 0 | E98: 14
A99: 80302012 | B99: 140 | C99: 0 | D99: 140 | E99: 703
A100: 80302013 | B100: 372 | C100: 0 | D100: 372 | E100: 6638
A101: 80302015 | B101: 73 | D101: 73 | E101: 1354
A102: 80302020 | B102: 0 | C102: 0 | D102: 0 | E102: 32
A103: 80302021 | B103: 0 | E103: 68
A104: 80302022 | B104: 0 | E104: 4121
A105: 80302023 | B105: 33740 | C105: 0 | D105: 33740 | E105: 76242
A106: 80302024 | B106: 83 | D106: 83 | E106: 251
A107: 80302025 | B107: 0 | E107: 8
A108: 80302026 | B108: 3 | D108: 3 | E108: 196
A109: 80302028 | B109: 10 | D109: 10
A110: 80302030 | B110: 57 | C110: 0 | D110: 57 | E110: 1258
A111: 80302032 | B111: 47870 | C111: 0 | D111: 47870 | E111: 64754
A112: 80302033 | B112: 0 | E112: 12
A113: 80302034 | B113: 36836 | C113: 0 | D113: 36836 | E113: 51625
A114: 80302035 | B114: 2 | D114: 2 | E114: 124
A115: 80302038 | B115: 0 | E115: 92
A116: 80302040 | B116: 303 | C116: 0 | D116: 303 | E116: 6533
A117: 80302042 | B117: 12 | D117: 12 | E117: 839
A118: 80302044 | B118: 0 | E118: 50
A119: 80302045 | B119: 12 | D119: 12 | E119: 1826
A120: 80302047 | B120: 45328 | C120: 447 | D120: 44881 | E120: 99975
A121: 80302048 | B121: 3285 | C121: 0 | D121: 3285 | E121: 8450
A122: 80302050 | B122: 0 | E122: 4
A123: 80302051 | B123: 0 | E123: 32
A124: 80302053 | B124: 0 | E124: 6
A125: 80302054 | B125: 0 | E125: 58
A126: 80302057 | B126: 19922 | C126: 0 | D126: 19922 | E126: 32501
A127: 80302058 | B127: 1 | D127: 1 | E127: 1
A128: 80302059 | B128: 969 | D128: 969
A129: 80302060 | B129: 861 | D129: 861 | E129: 2918
A130: 80302063 | B130: 504 | C130: 0 | D130: 504 | E130: 16166
A131: 80302064 | B131: 2196 | C131: 0 | D131: 2196 | E131: 45117
A132: 80302065 | B132: 0 | E132: 101
A133: 80302067 | B133: 3745 | C133: 0 | D133: 3745 | E133: 49769
A134: 80302068 | B134: 1288 | C134: 0 | D134: 1288 | E134: 41711
A135: 80302069 | B135: 0 | E135: 4092
A136: 80302075 | B136: 16 | C136: 0 | D136: 16 | E136: 1435
A137: 80302076 | B137: 18708 | C137: 0 | D137: 18708 | E137: 18250
A138: 80303015 | B138: 2 | D138: 2 | E138: 1180
A139: 80303024 | B139: 26353 | C139: 0 | D139: 26353 | E139: 65022
A140: 80303025 | B140: 0 | E140: 16
A141: 80303026 | B141: 19598 | C141: 0 | D141: 19598 | E141: 22702
A142: 80303027 | B142: 361 | D142: 361 | E142: 73
A143: 80303028 | B143: 279 | D143: 279 | E143: 26
A144: 80305003 | B144: 0 | E144: 1
A145: 80305004 | B145: 0 | E145: 3
A146: 80305005 | B146: 0 | E146: 1478
A147: 80305009 | B147: 0 | E147: 2
A148: 80305012 | B148: 0 | E148: 6
A149: 80305018 | B149: 0 | E149: 1
A150: 80305019 | B150: 1102 | D150: 1102 | E150: 2627
A151: 80305020 | B151: 9 | D151: 9 | E151: 324
A152: 80305027 | B152: 0 | E152: 11
A153: 80305028 | B153: 0 | E153: 2
A154: 80305029 | B154: 0 | E154: 3
A155: 80305030 | B155: 4 | D155: 4 | E155: 128
A156: 80305031 | B156: 0 | E156: 1
A157: 80305070 | B157: 1329 | D157: 1329 | E157: 5981
A158: 80305170 | B158: 0 | E158: 11
A159: 80306001 | B159: 25 | D159: 25 | E159: 194
A160: 80306002 | B160: 113 | C160: 25 | D160: 88 | E160: 673
A161: 80306004 | B161: 184 | D161: 184 | E161: 7
A162: 80306005 | B162: 221 | D162: 221 | E162: 7
A163: 80306007 | B163: 167 | D163: 167 | E163: 215
A164: 80306008 | B164: 212 | D164: 212 | E164: 55
A165: 80306011 | B165: 7357 | C165: 0 | D165: 7357 | E165: 15586
A166: 80306016 | B166: 0 | E166: 4
A167: 80306018 | B167: 3 | D167: 3 | E167: 53
A168: 80306022 | B168: 0 | E168: 1
A169: 80306023 | B169: 0 | E169: 54
A170: 80306026 | B170: 1293 | D170: 1293 | E170: 4
A171: 80306038 | B171: 4840 | C171: 0 | D171: 4840 | E171: 7015
A172: 80306041 | B172: 0 | E172: 4
A173: 80306042 | B173: 213 | D173: 213 | E173: 9073
A174: 80306045 | B174: 0 | E174: 80
A175: 80306047 | B175: 0 | E175: 25
A176: 80306048 | B176: 235 | C176: 0 | D176: 235 | E176: 854
A177: 80306049 | B177: 0 | E177: 20
A178: 80306050 | B178: 0 | E178: 63
A179: 80306051 | B179: 125 | C179: 0 | D179: 125 | E179: 269
A180: 80306052 | B180: 1 | D180: 1 | E180: 38
A181: 80306059 | B181: 172 | D181: 172 | E181: 51
A182: 80306061 | B182: 1436 | C182: 0 | D182: 1436 | E182: 3362
A183: 80306062 | B183: 0 | E183: 1
A184: 80306064 | B184: 0 | E184: 28
A185: 80306066 | B185: 0 | E185: 114
A186: 80306067 | B186: 0 | E186: 84
A187: 80306069 | B187: 0 | E187: 25
A188: 80306073 | B188: 0 | E188: 65
A189: 80306075 | B189: 0 | E189: 286
A190: 80306076 | B190: 0 | E190: 18
A191: 80306077 | B191: 2 | D191: 2 | E191: 47
A192: 80306078 | B192: 22 | D192: 22 | E192: 892
A193: 80306079 | B193: 19 | D193: 19 | E193: 591
A194: 80306080 | B194: 0 | E194: 58
A195: 80306081 | B195: 0 | E195: 18
A196: 80306117 | B196: 18 | D196: 18
A197: 80306169 | B197: 58 | C197: 0 | D197: 58 | E197: 1755
A198: 80306170 | B198: 12 | D198: 12
A199: 80307011 | B199: 238802 | C199: 3735 | D199: 235067 | E199: 83955
A200: 80307012 | B200: 8011 | C200: 48 | D200: 7963 | E200: 2904
A201: 80308001 | B201: 1 | D201: 1 | E201: 40
... 123 more rows
